Workbook

Sheet 10. RTSR - Current Rates
A1: Back to Index | B1: Back to Index | BA1: 1
B2: INCENTIVE REGULATION MODEL FOR 2018 FILERS
B13: Columns F and G must match the data from the most recent RRR filing. Rates have been imported from Tab 2. As well, the Loss Factor has been imported from "Model Specs" tab. If the data needs to be modified, please make the necessary adjustments and note the changes in your manager's summary.
B15: Rate Class | C15: Rate Description | D15: Unit | E15: Rate | F15: Non-Loss Adjusted Metered kWh | G15: Non-Loss Adjusted Metered kW | H15: Applicable Loss Factor | I15: Loss Adjusted Billed kWh
A16: R_TN | B16: RESIDENTIAL SERVICE CLASSIFICATION | C16: Retail Transmission Rate – Network Service Rate | D16: $/kWh | E16: 0.0074 | F16: =+[4]Sheet1!$C$2 -> 1647803823 | G16: 0 | H16: 1.0379 | I16: =F16*H16 -> 1710255588
A17: R_TC | B17: RESIDENTIAL SERVICE CLASSIFICATION | C17: Retail Transmission Rate – Line and Transformation Connection Service Rate | D17: $/kWh | E17: 0.0059 | F17: =F16 -> 1647803823 | G17: 0 | H17: =H16 -> 1.0379 | I17: =F17*H17 -> 1710255588
A18: GSL_TN | B18: GENERAL SERVICE LESS THAN 50 kW SERVICE CLASSIFICATION | C18: Retail Transmission Rate – Network Service Rate | D18: $/kWh | E18: 0.0065 | F18: =+[4]Sheet1!$C$3 -> 595148676.1 | G18: 0 | H18: =H17 -> 1.0379 | I18: 617704811
A19: GSL_TC | B19: GENERAL SERVICE LESS THAN 50 kW SERVICE CLASSIFICATION | C19: Retail Transmission Rate – Line and Transformation Connection Service Rate | D19: $/kWh | E19: 0.0053 | F19: =F18 -> 595148676.1 | G19: 0 | H19: 1.0379 | I19: 617704811
A20: GS50_499_TN | B20: GENERAL SERVICE GREATER THAN 50 kW SERVICE CLASSIFICATION | C20: Retail Transmission Rate – Network Service Rate | D20: $/kW | E20: 2.5721 | F20: =+[4]Sheet1!$C$4 -> 1811883809 | G20: =+[4]Sheet1!$D$4 -> 4895437.151
A21: GS50_499_TC | B21: GENERAL SERVICE GREATER THAN 50 kW SERVICE CLASSIFICATION | C21: Retail Transmission Rate – Line and Transformation Connection Service Rate | D21: $/kW | E21: 2.1213 | F21: =F20 -> 1811883809 | G21: =G20 -> 4895437.151
A22: GS500_TN | B22: LARGE USE 1 SERVICE CLASSIFICATION | C22: Retail Transmission Rate – Network Service Rate | D22: $/kW | E22: 2.9382 | F22: =+[4]Sheet1!$C$5 -> 213955306 | G22: =+[4]Sheet1!$D$5 -> 512415.67
A23: GS500_TC | B23: LARGE USE 1 SERVICE CLASSIFICATION | C23: Retail Transmission Rate – Line and Transformation Connection Service Rate | D23: $/kW | E23: 2.4376 | F23: =F22 -> 213955306 | G23: =G22 -> 512415.67
A24: LU_TN | B24: LARGE USE 2 SERVICE CLASSIFICATION | C24: Retail Transmission Rate – Network Service Rate – Interval Metered | D24: $/kW | E24: 2.9382 | F24: =+[4]Sheet1!$C$6 -> 350315953 | G24: =+[4]Sheet1!$D$6 -> 1901226.94
A25: LU_TC | B25: LARGE USE 2 SERVICE CLASSIFICATION | C25: Retail Transmission Rate – Line and Transformation Connection Service Rate – Interval Metered | D25: $/kW | E25: 2.4376 | F25: =F24 -> 350315953 | G25: =G24 -> 1901226.94
A26: USL_TN | B26: UNMETERED SCATTERED LOAD SERVICE CLASSIFICATION | C26: Retail Transmission Rate – Network Service Rate | D26: $/kWh | E26: 0.0066 | F26: =+[4]Sheet1!$C$7 -> 11571071.96 | G26: ='[1]4. Billing Det. for Def-Var'!E23 -> 0 | H26: =+H19 -> 1.0379 | I26: 12009615.58
A27: USL_TC | B27: UNMETERED SCATTERED LOAD SERVICE CLASSIFICATION | C27: Retail Transmission Rate – Line and Transformation Connection Service Rate | D27: $/kWh | E27: 0.0054 | F27: =F26 -> 11571071.96 | G27: =G26 -> 0 | H27: 1.0379 | I27: 12009615.58
B28: SENTINEL LIGHTING | C28: Retail Transmission Rate – Network Service Rate | D28: $/kW | E28: 2.1373 | F28: =+[4]Sheet1!$C$8 -> 438984.6484 | G28: =+[4]Sheet1!$D$8 -> 1213.423076
B29: SENTINEL LIGHTING | C29: Retail Transmission Rate – Line and Transformation Connection Service Rate | D29: $/kW | E29: 1.7069 | F29: =F28 -> 438984.6484 | G29: =G28 -> 1213.423076
A30: SL_TN | B30: STREET LIGHTING SERVICE CLASSIFICATION | C30: Retail Transmission Rate – Network Service Rate | D30: $/kW | E30: 2.0248 | F30: =+[4]Sheet1!$C$9 -> 31864627.86 | G30: =+[4]Sheet1!$D$9 -> 88666.23
A31: SL_TC | B31: STREET LIGHTING SERVICE CLASSIFICATION | C31: Retail Transmission Rate – Line and Transformation Connection Service Rate | D31: $/kW | E31: 1.6642 | F31: =F30 -> 31864627.86 | G31: =G30 -> 88666.23

Sheet 11. RTSR-UTRs & Sub-Tx
A1: Back to Index
B2: INCENTIVE REGULATION MODEL FOR 2018 FILERS
B12: Uniform Transmission Rates | C12: Unit | E12: 2016 | G12: 2017 | I12: 2018
B14: Rate Description | E14: Rate | G14: Rate | I14: Rate
B16: Network Service Rate | C16: kW | E16: 3.66 | G16: 3.66 | I16: =G16 -> 3.66
B18: Line Connection Service Rate | C18: kW | E18: 0.87 | G18: 0.87 | I18: =G18 -> 0.87
B20: Transformation Connection Service Rate | C20: kW | E20: 2.02 | G20: 2.02 | I20: =G20 -> 2.02
B23: Hydro One Sub-Transmission Rates | C23: Unit | E23: 2016 | G23: 2017 | I23: 2018
E24: Feb - Dec 2016 | G24: Jan - Dec 2017
B27: Rate Description | E27: Rate | G27: Rate | I27: Rate
B29: Network Service Rate | C29: kW | E29: 3.3396 | G29: 3.1942 | I29: =G29 -> 3.1942
B31: Line Connection Service Rate | C31: kW | E31: 0.7791 | G31: 0.771 | I31: =G31 -> 0.771
B33: Transformation Connection Service Rate | C33: kW | E33: 1.7713 | G33: 1.7493 | I33: =G33 -> 1.7493
B35: Both Line and Transformation Connection Service Rate | C35: kW | E35: 2.5504 | G35: =SUM(G33,G31) -> 2.5203 | I35: =G35 -> 2.5203
B38: If needed, add extra host here. (I) | C38: Unit | E38: 2016 | G38: 2017 | I38: 2018
B42: Rate Description | E42: Rate | G42: Rate | I42: Rate
B44: Network Service Rate | C44: kW
B46: Line Connection Service Rate | C46: kW
B48: Transformation Connection Service Rate | C48: kW
B50: Both Line and Transformation Connection Service Rate | C50: kW | E50: =E48+E46 -> 0 | G50: =G48+G46 -> 0 | I50: =I48+I46 -> 0
B53: If needed, add extra host here. (II) | C53: Unit | E53: 2016 | G53: 2017 | I53: 2018
B57: Rate Description | E57: Rate | G57: Rate | I57: Rate
B59: Network Service Rate | C59: kW
B61: Line Connection Service Rate | C61: kW
B63: Transformation Connection Service Rate | C63: kW
B65: Both Line and Transformation Connection Service Rate | C65: kW | E65: =E63+E61 -> 0 | G65: =G63+G61 -> 0 | I65: =I63+I61 -> 0
E67: Historical 2016 | G67: Current 2017 | I67: Forecast 2018
B68: Low Voltage Switchgear Credit (if applicable, enter as a negative value) | C68: $

Sheet 12. RTSR-Historic Wholesale
A1: Back to Index
B2: INCENTIVE REGULATION MODEL FOR 2018 FILERS
B13: In the green shaded cells, enter billing detail for wholesale transmission for the same reporting period as the billing determinants on Tab 10. For Hydro One Sub-transmission Rates, if you are charged a combined Line and Transformer connection rate, please ensure that both the Line Connection and Transformation Connection columns are completed. If any of the Hydro One Sub-transmission rates (column E, I and M) are highlighted in orange, please double check the billing data entered in "Units Billed" and "Amount" columns. The highlighted rates do not match the Hydro One Sub-transmission rates approved for that time period. If data has been entered correctly, please provide explanation for the discrepancy in rates.
B16: IESO | D16: Network | H16: Line Connection | L16: Transformation Connection | P16: Total Line
B17: Month | D17: Units Billed | E17: Rate | F17: Amount | H17: Units Billed | I17: Rate | J17: Amount | L17: Units Billed | M17: Rate | N17: Amount | P17: Amount
B19: January | D19: =+'[5]UTR and ST Expenses'!C7 -> 734503 | E19: =IF(D19<>0,F19/D19,0) -> 3.66 | F19: =+'[5]UTR and ST $ Expenses'!C7 -> 2688280.98 | H19: =+'[5]UTR and ST Expenses'!F7 -> 712029 | I19: =IF(H19<>0,J19/H19,0) -> 0.87 | J19: =+'[5]UTR and ST $ Expenses'!F7 -> 619465.23 | L19: =+'[5]UTR and ST Expenses'!I7 -> 778836 | M19: =IF(L19<>0,N19/L19,0) -> 2.02 | N19: =+'[5]UTR and ST $ Expenses'!I7 -> 1573248.72 | P19: =J19+N19 -> 2192713.95
B20: February | D20: =+'[5]UTR and ST Expenses'!C8 -> 737990 | E20: 3.66 | F20: =+'[5]UTR and ST $ Expenses'!C8 -> 2701043.4 | H20: =+'[5]UTR and ST Expenses'!F8 -> 709244 | I20: 0.87 | J20: =+'[5]UTR and ST $ Expenses'!F8 -> 617042.28 | L20: =+'[5]UTR and ST Expenses'!I8 -> 774730 | M20: 2.02 | N20: =+'[5]UTR and ST $ Expenses'!I8 -> 1564954.6 | P20: 2181996.88
B21: March | D21: =+'[5]UTR and ST Expenses'!C9 -> 716928 | E21: 3.66 | F21: =+'[5]UTR and ST $ Expenses'!C9 -> 2623956.48 | H21: =+'[5]UTR and ST Expenses'!F9 -> 693561 | I21: 0.87 | J21: =+'[5]UTR and ST $ Expenses'!F9 -> 603398.07 | L21: =+'[5]UTR and ST Expenses'!I9 -> 750140 | M21: 2.02 | N21: =+'[5]UTR and ST $ Expenses'!I9 -> 1515282.8 | P21: 2118680.87
B22: April | D22: =+'[5]UTR and ST Expenses'!C10 -> 651166 | E22: 3.66 | F22: =+'[5]UTR and ST $ Expenses'!C10 -> 2383267.56 | H22: =+'[5]UTR and ST Expenses'!F10 -> 653961 | I22: 0.87 | J22: =+'[5]UTR and ST $ Expenses'!F10 -> 568946.07 | L22: =+'[5]UTR and ST Expenses'!I10 -> 706000 | M22: 2.02 | N22: =+'[5]UTR and ST $ Expenses'!I10 -> 1426120 | P22: 1995066.07
B23: May | D23: =+'[5]UTR and ST Expenses'!C11 -> 794359 | E23: 3.66 | F23: =+'[5]UTR and ST $ Expenses'!C11 -> 2907353.94 | H23: =+'[5]UTR and ST Expenses'!F11 -> 811465 | I23: 0.87 | J23: =+'[5]UTR and ST $ Expenses'!F11 -> 705974.55 | L23: =+'[5]UTR and ST Expenses'!I11 -> 871725 | M23: 2.02 | N23: =+'[5]UTR and ST $ Expenses'!I11 -> 1760884.5 | P23: 2466859.05
B24: June | D24: =+'[5]UTR and ST Expenses'!C12 -> 917962 | E24: 3.66 | F24: =+'[5]UTR and ST $ Expenses'!C12 -> 3359740.92 | H24: =+'[5]UTR and ST Expenses'!F12 -> 896063 | I24: 0.87 | J24: =+'[5]UTR and ST $ Expenses'!F12 -> 779574.81 | L24: =+'[5]UTR and ST Expenses'!I12 -> 964306 | M24: 2.02 | N24: =+'[5]UTR and ST $ Expenses'!I12 -> 1947898.12 | P24: 2727472.93
B25: July | D25: =+'[5]UTR and ST Expenses'!C13 -> 929179 | E25: 3.66 | F25: =+'[5]UTR and ST $ Expenses'!C13 -> 3400795.14 | H25: =+'[5]UTR and ST Expenses'!F13 -> 922239 | I25: 0.87 | J25: =+'[5]UTR and ST $ Expenses'!F13 -> 802347.93 | L25: =+'[5]UTR and ST Expenses'!I13 -> 992221 | M25: 2.02 | N25: =+'[5]UTR and ST $ Expenses'!I13 -> 2004286.42 | P25: 2806634.35
B26: August | D26: =+'[5]UTR and ST Expenses'!C14 -> 933677 | E26: 3.66 | F26: =+'[5]UTR and ST $ Expenses'!C14 -> 3417257.82 | H26: =+'[5]UTR and ST Expenses'!F14 -> 938903 | I26: 0.87 | J26: =+'[5]UTR and ST $ Expenses'!F14 -> 816845.61 | L26: =+'[5]UTR and ST Expenses'!I14 -> 1006595 | M26: 2.02 | N26: =+'[5]UTR and ST $ Expenses'!I14 -> 2033321.9 | P26: 2850167.51
B27: September | D27: =+'[5]UTR and ST Expenses'!C15 -> 983345 | E27: 3.66 | F27: =+'[5]UTR and ST $ Expenses'!C15 -> 3599042.7 | H27: =+'[5]UTR and ST Expenses'!F15 -> 947450 | I27: 0.87 | J27: =+'[5]UTR and ST $ Expenses'!F15 -> 824281.5 | L27: =+'[5]UTR and ST Expenses'!I15 -> 1013822 | M27: 2.02 | N27: =+'[5]UTR and ST $ Expenses'!I15 -> 2047920.44 | P27: 2872201.94
B28: October | D28: =+'[5]UTR and ST Expenses'!C16 -> 637333 | E28: 3.66 | F28: =+'[5]UTR and ST $ Expenses'!C16 -> 2332638.78 | H28: =+'[5]UTR and ST Expenses'!F16 -> 644670 | I28: 0.87 | J28: =+'[5]UTR and ST $ Expenses'!F16 -> 560862.9 | L28: =+'[5]UTR and ST Expenses'!I16 -> 704873 | M28: 2.02 | N28: =+'[5]UTR and ST $ Expenses'!I16 -> 1423843.46 | P28: 1984706.36
B29: November | D29: =+'[5]UTR and ST Expenses'!C17 -> 674104 | E29: 3.66 | F29: =+'[5]UTR and ST $ Expenses'!C17 -> 2467220.64 | H29: =+'[5]UTR and ST Expenses'!F17 -> 660542 | I29: 0.87 | J29: =+'[5]UTR and ST $ Expenses'!F17 -> 574671.54 | L29: =+'[5]UTR and ST Expenses'!I17 -> 712676 | M29: 2.02 | N29: =+'[5]UTR and ST $ Expenses'!I17 -> 1439605.52 | P29: 2014277.06
B30: December | D30: =+'[6]UTR and ST Expenses'!$C$18 -> 730627 | E30: 3.66 | F30: =+'[6]UTR and ST $ Expenses'!$C$18 -> 2674094.82 | H30: =+'[6]UTR and ST Expenses'!$F$18 -> 701810 | I30: 0.87 | J30: =+'[6]UTR and ST $ Expenses'!$F$18 -> 610574.7 | L30: =+'[6]UTR and ST Expenses'!$I$18 -> 759526 | M30: 2.02 | N30: =+'[6]UTR and ST $ Expenses'!$I$18 -> 1534242.52 | P30: 2144817.22
B32: Total | D32: =SUM(D19:D30) -> 9441173 | E32: =IF(D32<>0,F32/D32,0) -> 3.66 | F32: =SUM(F19:F30) -> 34554693.18 | H32: =SUM(H19:H30) -> 9291937 | I32: =IF(H32<>0,J32/H32,0) -> 0.87 | J32: =SUM(J19:J30) -> 8083985.19 | L32: =SUM(L19:L30) -> 10035450 | M32: =IF(L32<>0,N32/L32,0) -> 2.02 | N32: =SUM(N19:N30) -> 20271609 | P32: =SUM(P19:P30) -> 28355594.19
B34: Hydro One | D34: Network | H34: Line Connection | L34: Transformation Connection | P34: Total Line
B36: Month | D36: Units Billed | E36: Rate | F36: Amount | H36: Units Billed | I36: Rate | J36: Amount | L36: Units Billed | M36: Rate | N36: Amount | P36: Amount
B38: January | D38: =+'[5]UTR and ST Expenses'!C22 -> 64506.32 | E38: =IF(D38<>0,F38/D38,0) -> 3.3396 | F38: =+'[5]UTR and ST $ Expenses'!C23 -> 215425.3063 | H38: =+'[5]UTR and ST Expenses'!F22 -> 64965.95 | I38: =IF(H38<>0,J38/H38,0) -> 0.7791 | J38: =+'[5]UTR and ST $ Expenses'!F23 -> 50614.97164 | L38: =+'[5]UTR and ST Expenses'!I22 -> 64965.95 | M38: =IF(L38<>0,N38/L38,0) -> 1.7713 | N38: =+'[5]UTR and ST $ Expenses'!I23 -> 115074.1872 | P38: =J38+N38 -> 165689.1589
B39: February | D39: =+'[5]UTR and ST Expenses'!C23 -> 66023.57 | E39: =IF(D39<>0,F39/D39,0) -> 3.3396 | F39: =+'[5]UTR and ST $ Expenses'!C24 -> 220492.3144 | H39: =+'[5]UTR and ST Expenses'!F23 -> 67956.23 | I39: 0.7791 | J39: =+'[5]UTR and ST $ Expenses'!F24 -> 52944.69879 | L39: =+'[5]UTR and ST Expenses'!I23 -> 67956.23 | M39: 1.7713 | N39: =+'[5]UTR and ST $ Expenses'!I24 -> 120370.8702 | P39: =J39+N39 -> 173315.569
B40: March | D40: =+'[5]UTR and ST Expenses'!C24 -> 62632.13 | E40: 3.3396 | F40: =+'[5]UTR and ST $ Expenses'!C25 -> 209166.2613 | H40: =+'[5]UTR and ST Expenses'!F24 -> 63404.64 | I40: 0.7791 | J40: =+'[5]UTR and ST $ Expenses'!F25 -> 49398.55502 | L40: =+'[5]UTR and ST Expenses'!I24 -> 63404.64 | M40: 1.7713 | N40: =+'[5]UTR and ST $ Expenses'!I25 -> 112308.6388 | P40: 161707.1939
B41: April | D41: =+'[5]UTR and ST Expenses'!C25 -> 54954.7 | E41: 3.3396 | F41: =+'[5]UTR and ST $ Expenses'!C26 -> 183526.7161 | H41: =+'[5]UTR and ST Expenses'!F25 -> 57469.57 | I41: 0.7791 | J41: =+'[5]UTR and ST $ Expenses'!F26 -> 44774.54199 | L41: =+'[5]UTR and ST Expenses'!I25 -> 57469.57 | M41: 1.7713 | N41: =+'[5]UTR and ST $ Expenses'!I26 -> 101795.8493 | P41: 146570.3913
B42: May | D42: =+'[5]UTR and ST Expenses'!C26 -> 70605.16 | E42: 3.3396 | F42: =+'[5]UTR and ST $ Expenses'!C27 -> 235792.9923 | H42: =+'[5]UTR and ST Expenses'!F26 -> 75469.69 | I42: 0.7791 | J42: =+'[5]UTR and ST $ Expenses'!F27 -> 58798.43548 | L42: =+'[5]UTR and ST Expenses'!I26 -> 75469.69 | M42: 1.7713 | N42: =+'[5]UTR and ST $ Expenses'!I27 -> 133679.4619 | P42: 192477.8974
B43: June | D43: =+'[5]UTR and ST Expenses'!C27 -> 95410.99 | E43: 3.3396 | F43: =+'[5]UTR and ST $ Expenses'!C28 -> 318634.5422 | H43: =+'[5]UTR and ST Expenses'!F27 -> 96823.84 | I43: 0.7791 | J43: =+'[5]UTR and ST $ Expenses'!F28 -> 75435.45374 | L43: =+'[5]UTR and ST Expenses'!I27 -> 96823.84 | M43: 1.7713 | N43: =+'[5]UTR and ST $ Expenses'!I28 -> 171504.0678 | P43: 246939.5215
B44: July | D44: =+'[5]UTR and ST Expenses'!C28 -> 89077.07 | E44: 3.3396 | F44: =+'[5]UTR and ST $ Expenses'!C29 -> 297481.783 | H44: =+'[5]UTR and ST Expenses'!F28 -> 89743.82 | I44: 0.7791 | J44: =+'[5]UTR and ST $ Expenses'!F29 -> 69919.41016 | L44: =+'[5]UTR and ST Expenses'!I28 -> 89743.82 | M44: 1.7713 | N44: =+'[5]UTR and ST $ Expenses'!I29 -> 158963.2284 | P44: 228882.6385
B45: August | D45: =+'[5]UTR and ST Expenses'!C29 -> 86613.79 | E45: 3.3396 | F45: =+'[5]UTR and ST $ Expenses'!C30 -> 289255.4131 | H45: =+'[5]UTR and ST Expenses'!F29 -> 87259.81 | I45: 0.7791 | J45: =+'[5]UTR and ST $ Expenses'!F30 -> 67984.11797 | L45: =+'[5]UTR and ST Expenses'!I29 -> 87259.81 | M45: 1.7713 | N45: =+'[5]UTR and ST $ Expenses'!I30 -> 154563.3015 | P45: 222547.4194
B46: September | D46: =+'[5]UTR and ST Expenses'!C30 -> 88333.25 | E46: 3.3396 | F46: =+'[5]UTR and ST $ Expenses'!C31 -> 294997.7217 | H46: =+'[5]UTR and ST Expenses'!F30 -> 89160.27 | I46: 0.7791 | J46: =+'[5]UTR and ST $ Expenses'!F31 -> 69464.76636 | L46: =+'[5]UTR and ST Expenses'!I30 -> 89160.27 | M46: 1.7713 | N46: =+'[5]UTR and ST $ Expenses'!I31 -> 157929.5863 | P46: 227394.3526
B47: October | D47: =+'[5]UTR and ST Expenses'!C31 -> 53846.8 | E47: 3.3396 | F47: =+'[5]UTR and ST $ Expenses'!C32 -> 179826.7733 | H47: =+'[5]UTR and ST Expenses'!F31 -> 56200.88 | I47: 0.7791 | J47: =+'[5]UTR and ST $ Expenses'!F32 -> 43786.10561 | L47: =+'[5]UTR and ST Expenses'!I31 -> 56200.88 | M47: 1.7713 | N47: =+'[5]UTR and ST $ Expenses'!I32 -> 99548.61874 | P47: 143334.7244
B48: November | D48: =+'[5]UTR and ST Expenses'!C32 -> 55834.17 | E48: 3.3396 | F48: =+'[5]UTR and ST $ Expenses'!C33 -> 186463.7941 | H48: =+'[5]UTR and ST Expenses'!F32 -> 57643.19 | I48: 0.7791 | J48: =+'[5]UTR and ST $ Expenses'!F33 -> 44909.80933 | L48: =+'[5]UTR and ST Expenses'!I32 -> 57643.19 | M48: 1.7713 | N48: =+'[5]UTR and ST $ Expenses'!I33 -> 102103.3824 | P48: 147013.1918
B49: December | D49: =+'[6]UTR and ST Expenses'!$C$33 -> 71104.25 | E49: 3.3396 | F49: =+'[6]UTR and ST $ Expenses'!$C$34 -> 237459.7533 | H49: =+'[6]UTR and ST Expenses'!$F$33 -> 71833.86 | I49: 0.7791 | J49: =+'[6]UTR and ST $ Expenses'!$F$34 -> 55965.76033 | L49: =+'[6]UTR and ST Expenses'!$I$33 -> 71833.86 | M49: 1.7713 | N49: =+'[6]UTR and ST $ Expenses'!$I$34 -> 127239.3162 | P49: 183205.0765
B51: Total | D51: =SUM(D38:D49) -> 858942.2 | E51: =IF(D51<>0,F51/D51,0) -> 3.3396 | F51: =SUM(F38:F49) -> 2868523.371 | H51: =SUM(H38:H49) -> 877931.75 | I51: =IF(H51<>0,J51/H51,0) -> 0.7791 | J51: =SUM(J38:J49) -> 683996.6264 | L51: =SUM(L38:L49) -> 877931.75 | M51: =IF(L51<>0,N51/L51,0) -> 1.7713 | N51: =SUM(N38:N49) -> 1555080.509 | P51: =SUM(P38:P49) -> 2239077.135
B53: Add Extra Host Here (I) | D53: Network | H53: Line Connection | L53: Transformation Connection | P53: Total Line
B54: (if needed)
B55: Month | D55: Units Billed | E55: Rate | F55: Amount | H55: Units Billed | I55: Rate | J55: Amount | L55: Units Billed | M55: Rate | N55: Amount | P55: Amount
B57: January | E57: =IF(D57<>0,F57/D57,0) -> 0 | I57: =IF(H57<>0,J57/H57,0) -> 0 | M57: =IF(L57<>0,N57/L57,0) -> 0 | P57: =J57+N57 -> 0
B58: February | E58: 0 | I58: 0 | M58: 0 | P58: 0
B59: March | E59: 0 | I59: 0 | M59: 0 | P59: 0
B60: April | E60: 0 | I60: 0 | M60: 0 | P60: 0
B61: May | E61: 0 | I61: 0 | M61: 0 | P61: 0
B62: June | E62: 0 | I62: 0 | M62: 0 | P62: 0
B63: July | E63: 0 | I63: 0 | M63: 0 | P63: 0
B64: August | E64: 0 | I64: 0 | M64: 0 | P64: 0
B65: September | E65: 0 | I65: 0 | M65: 0 | P65: 0
B66: October | E66: 0 | I66: 0 | M66: 0 | P66: 0
B67: November | E67: 0 | I67: 0 | M67: 0 | P67: 0
B68: December | E68: 0 | I68: 0 | M68: 0 | P68: 0
B70: Total | D70: =SUM(D57:D68) -> 0 | E70: =IF(D70<>0,F70/D70,0) -> 0 | F70: =SUM(F57:F68) -> 0 | H70: =SUM(H57:H68) -> 0 | I70: =IF(H70<>0,J70/H70,0) -> 0 | J70: =SUM(J57:J68) -> 0 | L70: =SUM(L57:L68) -> 0 | M70: =IF(L70<>0,N70/L70,0) -> 0 | N70: =SUM(N57:N68) -> 0 | P70: =SUM(P57:P68) -> 0
B72: Add Extra Host Here (II) | D72: Network | H72: Line Connection | L72: Transformation Connection | P72: Total Line
B73: (if needed)
B74: Month | D74: Units Billed | E74: Rate | F74: Amount | H74: Units Billed | I74: Rate | J74: Amount | L74: Units Billed | M74: Rate | N74: Amount | P74: Amount
B76: January | E76: =IF(D76<>0,F76/D76,0) -> 0 | I76: =IF(H76<>0,J76/H76,0) -> 0 | M76: =IF(L76<>0,N76/L76,0) -> 0 | P76: =J76+N76 -> 0
B77: February | E77: 0 | I77: 0 | M77: 0 | P77: 0
B78: March | E78: 0 | I78: 0 | M78: 0 | P78: 0
B79: April | E79: 0 | I79: 0 | M79: 0 | P79: 0
B80: May | E80: 0 | I80: 0 | M80: 0 | P80: 0
B81: June | E81: 0 | I81: 0 | M81: 0 | P81: 0
B82: July | E82: 0 | I82: 0 | M82: 0 | P82: 0
B83: August | E83: 0 | I83: 0 | M83: 0 | P83: 0
B84: September | E84: 0 | I84: 0 | M84: 0 | P84: 0
B85: October | E85: 0 | I85: 0 | M85: 0 | P85: 0
B86: November | E86: 0 | I86: 0 | M86: 0 | P86: 0
B87: December | E87: 0 | I87: 0 | M87: 0 | P87: 0
B89: Total | D89: =SUM(D76:D87) -> 0 | E89: =IF(D89<>0,F89/D89,0) -> 0 | F89: =SUM(F76:F87) -> 0 | H89: =SUM(H76:H87) -> 0 | I89: =IF(H89<>0,J89/H89,0) -> 0 | J89: =SUM(J76:J87) -> 0 | L89: =SUM(L76:L87) -> 0 | M89: =IF(L89<>0,N89/L89,0) -> 0 | N89: =SUM(N76:N87) -> 0 | P89: =SUM(P76:P87) -> 0
B91: Total | D91: Network | H91: Line Connection | L91: Transformation Connection | P91: Total Line
B93: Month | D93: Units Billed | E93: Rate | F93: Amount | H93: Units Billed | I93: Rate | J93: Amount | L93: Units Billed | M93: Rate | N93: Amount | P93: Amount
B95: January | D95: =D19+D38+D57+D76 -> 799009.32 | E95: =IF(D95<>0,F95/D95,0) -> 3.634133187 | F95: =F19+F38+F57+F76 -> 2903706.286 | H95: =H19+H38+H57+H76 -> 776994.95 | I95: =IF(H95<>0,J95/H95,0) -> 0.862399687 | J95: =J19+J38+J57+J76 -> 670080.2016 | L95: =L19+L38+L57+L76 -> 843801.95 | M95: =IF(L95<>0,N95/L95,0) -> 2.000852104 | N95: =N19+N38+N57+N76 -> 1688322.907 | P95: =J95+N95 -> 2358403.109
B96: February | D96: =D20+D39+D58+D77 -> 804013.57 | E96: 3.633689559 | F96: =F20+F39+F58+F77 -> 2921535.714 | H96: =H20+H39+H58+H77 -> 777200.23 | I96: 0.8620519564 | J96: =J20+J39+J58+J77 -> 669986.9788 | L96: =L20+L39+L58+L77 -> 842686.23 | M96: 1.999944238 | N96: =N20+N39+N58+N77 -> 1685325.47 | P96: 2355312.449
B97: March | D97: 779560.13 | E97: 3.634258131 | F97: 2833122.741 | H97: 756965.64 | I97: 0.8623860721 | J97: 652796.625 | L97: 813544.64 | M97: 2.000617248 | N97: 1627591.439 | P97: 2280388.064
B98: April | D98: 706120.7 | E98: 3.635064481 | F98: 2566794.276 | H98: 711430.57 | I98: 0.8626570714 | J98: 613720.612 | L98: 763469.57 | M98: 2.001279304 | N98: 1527915.849 | P98: 2141636.461
B99: May | D99: 864964.16 | E99: 3.633846439 | F99: 3143146.932 | H99: 886934.69 | I99: 0.8622652762 | J99: 764772.9855 | L99: 947194.69 | M99: 2.000184315 | N99: 1894563.962 | P99: 2659336.947
B100: June | D100: 1013372.99 | E100: 3.629833732 | F100: 3678375.462 | H100: 992886.84 | I100: 0.8611356595 | J100: 855010.2637 | L100: 1061129.84 | M100: 1.997307123 | N100: 2119402.188 | P100: 2974412.452
B101: July | D101: 1018256.07 | E101: 3.631971399 | F101: 3698276.923 | H101: 1011982.82 | I101: 0.8619388817 | J101: 872267.3402 | L101: 1081964.82 | M101: 1.999371521 | N101: 2163249.648 | P101: 3035516.989
B102: August | D102: 1020290.79 | E102: 3.632800834 | F102: 3706513.233 | H102: 1026162.81 | I102: 0.8622703136 | J102: 884829.728 | L102: 1093854.81 | M102: 2.000160516 | N102: 2187885.201 | P102: 3072714.929
B103: September | D103: 1071678.25 | E103: 3.633590979 | F103: 3894040.422 | H103: 1036610.27 | I103: 0.8621815664 | J103: 893746.2664 | L103: 1102982.27 | M103: 1.999896178 | N103: 2205850.026 | P103: 3099596.293
B104: October | D104: 691179.8 | E104: 3.635039035 | F104: 2512465.553 | H104: 700870.88 | I104: 0.8627109827 | J104: 604649.0056 | L104: 761073.88 | M104: 2.001634951 | N104: 1523392.079 | P104: 2128041.084
B105: November | D105: 729938.17 | E105: 3.635492078 | F105: 2653684.434 | H105: 718185.19 | I105: 0.8627041576 | J105: 619581.3493 | L105: 770319.19 | M105: 2.001389713 | N105: 1541708.902 | P105: 2161290.252
B106: December | D106: 801731.25 | E106: 3.631584241 | F106: 2911554.573 | H106: 773643.86 | I106: 0.8615598143 | J106: 666540.4603 | L106: 831359.86 | M106: 1.998511013 | N106: 1661481.836 | P106: 2328022.297
B108: Total | D108: =SUM(D95:D106) -> 10300115.2 | E108: =IF(D108<>0,F108/D108,0) -> 3.633281359 | F108: =SUM(F95:F106) -> 37423216.55 | H108: =SUM(H95:H106) -> 10169868.75 | I108: =IF(H108<>0,J108/H108,0) -> 0.8621528981 | J108: =SUM(J95:J106) -> 8767981.816 | L108: =SUM(L95:L106) -> 10913381.75 | M108: =IF(L108<>0,N108/L108,0) -> 1.99999322 | N108: =SUM(N95:N106) -> 21826689.51 | P108: =SUM(P95:P106) -> 30594671.33
N110: Low Voltage Switchgear Credit (if applicable) | P110: ='11. RTSR-UTRs & Sub-Tx'!E68 -> 0
N112: Total including deduction for Low Voltage Switchgear Credit | P112: =P108+P110 -> 30594671.33

Sheet 13. RTSR-Current Wholesale
A1: Back to Index
B2: INCENTIVE REGULATION MODEL FOR 2018 FILERS
B13: The purpose of this sheet is to calculate the expected billing when current 2017 Uniform Transmission Rates are applied against historical 2016 transmission units.
B16: IESO | D16: Network | H16: Line Connection | L16: Transformation Connection | P16: Total Line
B18: Month | D18: Units Billed | E18: Rate | F18: Amount | H18: Units Billed | I18: Rate | J18: Amount | L18: Units Billed | M18: Rate | N18: Amount | P18: Amount
B20: January | D20: ='12. RTSR-Historic Wholesale'!D19 -> 734503 | E20: ='11. RTSR-UTRs & Sub-Tx'!G16 -> 3.66 | F20: =D20*E20 -> 2688280.98 | H20: ='12. RTSR-Historic Wholesale'!H19 -> 712029 | I20: ='11. RTSR-UTRs & Sub-Tx'!G18 -> 0.87 | J20: =H20*I20 -> 619465.23 | L20: ='12. RTSR-Historic Wholesale'!L19 -> 778836 | M20: ='11. RTSR-UTRs & Sub-Tx'!G20 -> 2.02 | N20: =L20*M20 -> 1573248.72 | P20: =J20+N20 -> 2192713.95
B21: February | D21: ='12. RTSR-Historic Wholesale'!D20 -> 737990 | E21: =E20 -> 3.66 | F21: =D21*E21 -> 2701043.4 | H21: ='12. RTSR-Historic Wholesale'!H20 -> 709244 | I21: =I20 -> 0.87 | J21: =H21*I21 -> 617042.28 | L21: ='12. RTSR-Historic Wholesale'!L20 -> 774730 | M21: =M20 -> 2.02 | N21: =L21*M21 -> 1564954.6 | P21: 2181996.88
B22: March | D22: ='12. RTSR-Historic Wholesale'!D21 -> 716928 | E22: =E21 -> 3.66 | F22: 2623956.48 | H22: ='12. RTSR-Historic Wholesale'!H21 -> 693561 | I22: =I21 -> 0.87 | J22: 603398.07 | L22: ='12. RTSR-Historic Wholesale'!L21 -> 750140 | M22: =M21 -> 2.02 | N22: 1515282.8 | P22: 2118680.87
B23: April | D23: ='12. RTSR-Historic Wholesale'!D22 -> 651166 | E23: 3.66 | F23: 2383267.56 | H23: ='12. RTSR-Historic Wholesale'!H22 -> 653961 | I23: 0.87 | J23: 568946.07 | L23: ='12. RTSR-Historic Wholesale'!L22 -> 706000 | M23: 2.02 | N23: 1426120 | P23: 1995066.07
B24: May | D24: ='12. RTSR-Historic Wholesale'!D23 -> 794359 | E24: 3.66 | F24: 2907353.94 | H24: ='12. RTSR-Historic Wholesale'!H23 -> 811465 | I24: 0.87 | J24: 705974.55 | L24: ='12. RTSR-Historic Wholesale'!L23 -> 871725 | M24: 2.02 | N24: 1760884.5 | P24: 2466859.05
B25: June | D25: ='12. RTSR-Historic Wholesale'!D24 -> 917962 | E25: 3.66 | F25: 3359740.92 | H25: ='12. RTSR-Historic Wholesale'!H24 -> 896063 | I25: 0.87 | J25: 779574.81 | L25: ='12. RTSR-Historic Wholesale'!L24 -> 964306 | M25: 2.02 | N25: 1947898.12 | P25: 2727472.93
B26: July | D26: ='12. RTSR-Historic Wholesale'!D25 -> 929179 | E26: 3.66 | F26: 3400795.14 | H26: ='12. RTSR-Historic Wholesale'!H25 -> 922239 | I26: 0.87 | J26: 802347.93 | L26: ='12. RTSR-Historic Wholesale'!L25 -> 992221 | M26: 2.02 | N26: 2004286.42 | P26: 2806634.35
B27: August | D27: ='12. RTSR-Historic Wholesale'!D26 -> 933677 | E27: 3.66 | F27: 3417257.82 | H27: ='12. RTSR-Historic Wholesale'!H26 -> 938903 | I27: 0.87 | J27: 816845.61 | L27: ='12. RTSR-Historic Wholesale'!L26 -> 1006595 | M27: 2.02 | N27: 2033321.9 | P27: 2850167.51
B28: September | D28: ='12. RTSR-Historic Wholesale'!D27 -> 983345 | E28: 3.66 | F28: 3599042.7 | H28: ='12. RTSR-Historic Wholesale'!H27 -> 947450 | I28: 0.87 | J28: 824281.5 | L28: ='12. RTSR-Historic Wholesale'!L27 -> 1013822 | M28: 2.02 | N28: 2047920.44 | P28: 2872201.94
B29: October | D29: ='12. RTSR-Historic Wholesale'!D28 -> 637333 | E29: 3.66 | F29: 2332638.78 | H29: ='12. RTSR-Historic Wholesale'!H28 -> 644670 | I29: 0.87 | J29: 560862.9 | L29: ='12. RTSR-Historic Wholesale'!L28 -> 704873 | M29: 2.02 | N29: 1423843.46 | P29: 1984706.36
B30: November | D30: ='12. RTSR-Historic Wholesale'!D29 -> 674104 | E30: 3.66 | F30: 2467220.64 | H30: ='12. RTSR-Historic Wholesale'!H29 -> 660542 | I30: 0.87 | J30: 574671.54 | L30: ='12. RTSR-Historic Wholesale'!L29 -> 712676 | M30: 2.02 | N30: 1439605.52 | P30: 2014277.06
B31: December | D31: ='12. RTSR-Historic Wholesale'!D30 -> 730627 | E31: 3.66 | F31: 2674094.82 | H31: ='12. RTSR-Historic Wholesale'!H30 -> 701810 | I31: 0.87 | J31: 610574.7 | L31: ='12. RTSR-Historic Wholesale'!L30 -> 759526 | M31: 2.02 | N31: 1534242.52 | P31: 2144817.22
B33: Total | D33: =SUM(D20:D31) -> 9441173 | E33: =IF(D33<>0,F33/D33,0) -> 3.66 | F33: =SUM(F20:F31) -> 34554693.18 | H33: =SUM(H20:H31) -> 9291937 | I33: =IF(H33<>0,J33/H33,0) -> 0.87 | J33: =SUM(J20:J31) -> 8083985.19 | L33: =SUM(L20:L31) -> 10035450 | M33: =IF(L33<>0,N33/L33,0) -> 2.02 | N33: =SUM(N20:N31) -> 20271609 | P33: =SUM(P20:P31) -> 28355594.19
B35: Hydro One | D35: Network | H35: Line Connection | L35: Transformation Connection | P35: Total Line
B37: Month | D37: Units Billed | E37: Rate | F37: Amount | H37: Units Billed | I37: Rate | J37: Amount | L37: Units Billed | M37: Rate | N37: Amount | P37: Amount
B39: January | D39: ='12. RTSR-Historic Wholesale'!D38 -> 64506.32 | E39: ='11. RTSR-UTRs & Sub-Tx'!G29 -> 3.1942 | F39: =D39*E39 -> 206046.0873 | H39: ='12. RTSR-Historic Wholesale'!H38 -> 64965.95 | I39: ='11. RTSR-UTRs & Sub-Tx'!G31 -> 0.771 | J39: =H39*I39 -> 50088.74745 | L39: ='12. RTSR-Historic Wholesale'!L38 -> 64965.95 | M39: ='11. RTSR-UTRs & Sub-Tx'!G33 -> 1.7493 | N39: =L39*M39 -> 113644.9363 | P39: =J39+N39 -> 163733.6838
B40: February | D40: ='12. RTSR-Historic Wholesale'!D39 -> 66023.57 | E40: =E39 -> 3.1942 | F40: =D40*E40 -> 210892.4873 | H40: ='12. RTSR-Historic Wholesale'!H39 -> 67956.23 | I40: =I39 -> 0.771 | J40: =H40*I40 -> 52394.25333 | L40: ='12. RTSR-Historic Wholesale'!L39 -> 67956.23 | M40: =M39 -> 1.7493 | N40: =L40*M40 -> 118875.8331 | P40: 171270.0865
B41: March | D41: ='12. RTSR-Historic Wholesale'!D40 -> 62632.13 | E41: =E40 -> 3.1942 | F41: 200059.5496 | H41: ='12. RTSR-Historic Wholesale'!H40 -> 63404.64 | I41: =I40 -> 0.771 | J41: 48884.97744 | L41: ='12. RTSR-Historic Wholesale'!L40 -> 63404.64 | M41: =M40 -> 1.7493 | N41: 110913.7368 | P41: 159798.7142
B42: April | D42: ='12. RTSR-Historic Wholesale'!D41 -> 54954.7 | E42: 3.1942 | F42: 175536.3027 | H42: ='12. RTSR-Historic Wholesale'!H41 -> 57469.57 | I42: 0.771 | J42: 44309.03847 | L42: ='12. RTSR-Historic Wholesale'!L41 -> 57469.57 | M42: =M41 -> 1.7493 | N42: 100531.5188 | P42: 144840.5573
B43: May | D43: ='12. RTSR-Historic Wholesale'!D42 -> 70605.16 | E43: 3.1942 | F43: 225527.0021 | H43: ='12. RTSR-Historic Wholesale'!H42 -> 75469.69 | I43: 0.771 | J43: 58187.13099 | L43: ='12. RTSR-Historic Wholesale'!L42 -> 75469.69 | M43: 1.7493 | N43: 132019.1287 | P43: 190206.2597
B44: June | D44: ='12. RTSR-Historic Wholesale'!D43 -> 95410.99 | E44: 3.1942 | F44: 304761.7843 | H44: ='12. RTSR-Historic Wholesale'!H43 -> 96823.84 | I44: 0.771 | J44: 74651.18064 | L44: ='12. RTSR-Historic Wholesale'!L43 -> 96823.84 | M44: 1.7493 | N44: 169373.9433 | P44: 244025.124
B45: July | D45: ='12. RTSR-Historic Wholesale'!D44 -> 89077.07 | E45: 3.1942 | F45: 284529.977 | H45: ='12. RTSR-Historic Wholesale'!H44 -> 89743.82 | I45: 0.771 | J45: 69192.48522 | L45: ='12. RTSR-Historic Wholesale'!L44 -> 89743.82 | M45: 1.7493 | N45: 156988.8643 | P45: 226181.3495
B46: August | D46: ='12. RTSR-Historic Wholesale'!D45 -> 86613.79 | E46: 3.1942 | F46: 276661.768 | H46: ='12. RTSR-Historic Wholesale'!H45 -> 87259.81 | I46: 0.771 | J46: 67277.31351 | L46: ='12. RTSR-Historic Wholesale'!L45 -> 87259.81 | M46: 1.7493 | N46: 152643.5856 | P46: 219920.8991
B47: September | D47: ='12. RTSR-Historic Wholesale'!D46 -> 88333.25 | E47: 3.1942 | F47: 282154.0672 | H47: ='12. RTSR-Historic Wholesale'!H46 -> 89160.27 | I47: 0.771 | J47: 68742.56817 | L47: ='12. RTSR-Historic Wholesale'!L46 -> 89160.27 | M47: 1.7493 | N47: 155968.0603 | P47: 224710.6285
B48: October | D48: ='12. RTSR-Historic Wholesale'!D47 -> 53846.8 | E48: 3.1942 | F48: 171997.4486 | H48: ='12. RTSR-Historic Wholesale'!H47 -> 56200.88 | I48: 0.771 | J48: 43330.87848 | L48: ='12. RTSR-Historic Wholesale'!L47 -> 56200.88 | M48: 1.7493 | N48: 98312.19938 | P48: 141643.0779
B49: November | D49: ='12. RTSR-Historic Wholesale'!D48 -> 55834.17 | E49: 3.1942 | F49: 178345.5058 | H49: ='12. RTSR-Historic Wholesale'!H48 -> 57643.19 | I49: 0.771 | J49: 44442.89949 | L49: ='12. RTSR-Historic Wholesale'!L48 -> 57643.19 | M49: 1.7493 | N49: 100835.2323 | P49: 145278.1318
B50: December | D50: ='12. RTSR-Historic Wholesale'!D49 -> 71104.25 | E50: 3.1942 | F50: 227121.1953 | H50: ='12. RTSR-Historic Wholesale'!H49 -> 71833.86 | I50: 0.771 | J50: 55383.90606 | L50: ='12. RTSR-Historic Wholesale'!L49 -> 71833.86 | M50: 1.7493 | N50: 125658.9713 | P50: 181042.8774
B52: Total | D52: =SUM(D39:D50) -> 858942.2 | E52: =IF(D52<>0,F52/D52,0) -> 3.1942 | F52: =SUM(F39:F50) -> 2743633.175 | H52: =SUM(H39:H50) -> 877931.75 | I52: =IF(H52<>0,J52/H52,0) -> 0.771 | J52: =SUM(J39:J50) -> 676885.3792 | L52: =SUM(L39:L50) -> 877931.75 | M52: =IF(L52<>0,N52/L52,0) -> 1.7493 | N52: =SUM(N39:N50) -> 1535766.01 | P52: =SUM(P39:P50) -> 2212651.39
B54: ='[2]12. RTSR - Historical Wholesale'!B53 -> Add Extra Host Here (I) | D54: Network | H54: Line Connection | L54: Transformation Connection | P54: Total Line
B56: Month | D56: Units Billed | E56: Rate | F56: Amount | H56: Units Billed | I56: Rate | J56: Amount | L56: Units Billed | M56: Rate | N56: Amount | P56: Amount
B58: January | D58: ='12. RTSR-Historic Wholesale'!D57 -> 0 | E58: ='11. RTSR-UTRs & Sub-Tx'!G44 -> 0 | F58: =D58*E58 -> 0 | H58: ='12. RTSR-Historic Wholesale'!H57 -> 0 | I58: ='11. RTSR-UTRs & Sub-Tx'!G46 -> 0 | J58: =H58*I58 -> 0 | L58: ='12. RTSR-Historic Wholesale'!L57 -> 0 | M58: ='11. RTSR-UTRs & Sub-Tx'!G48 -> 0 | N58: =L58*M58 -> 0 | P58: =J58+N58 -> 0
B59: February | D59: ='12. RTSR-Historic Wholesale'!D58 -> 0 | E59: =E58 -> 0 | F59: =D59*E59 -> 0 | H59: ='12. RTSR-Historic Wholesale'!H58 -> 0 | I59: =I58 -> 0 | J59: =H59*I59 -> 0 | L59: ='12. RTSR-Historic Wholesale'!L58 -> 0 | M59: =M58 -> 0 | N59: =L59*M59 -> 0 | P59: 0
B60: March | D60: ='12. RTSR-Historic Wholesale'!D59 -> 0 | E60: =E59 -> 0 | F60: 0 | H60: ='12. RTSR-Historic Wholesale'!H59 -> 0 | I60: =I59 -> 0 | J60: 0 | L60: ='12. RTSR-Historic Wholesale'!L59 -> 0 | M60: =M59 -> 0 | N60: 0 | P60: 0
B61: April | D61: ='12. RTSR-Historic Wholesale'!D60 -> 0 | E61: 0 | F61: 0 | H61: ='12. RTSR-Historic Wholesale'!H60 -> 0 | I61: 0 | J61: 0 | L61: ='12. RTSR-Historic Wholesale'!L60 -> 0 | M61: 0 | N61: 0 | P61: 0
B62: May | D62: ='12. RTSR-Historic Wholesale'!D61 -> 0 | E62: 0 | F62: 0 | H62: ='12. RTSR-Historic Wholesale'!H61 -> 0 | I62: 0 | J62: 0 | L62: ='12. RTSR-Historic Wholesale'!L61 -> 0 | M62: 0 | N62: 0 | P62: 0
B63: June | D63: ='12. RTSR-Historic Wholesale'!D62 -> 0 | E63: 0 | F63: 0 | H63: ='12. RTSR-Historic Wholesale'!H62 -> 0 | I63: 0 | J63: 0 | L63: ='12. RTSR-Historic Wholesale'!L62 -> 0 | M63: 0 | N63: 0 | P63: 0
B64: July | D64: ='12. RTSR-Historic Wholesale'!D63 -> 0 | E64: 0 | F64: 0 | H64: ='12. RTSR-Historic Wholesale'!H63 -> 0 | I64: 0 | J64: 0 | L64: ='12. RTSR-Historic Wholesale'!L63 -> 0 | M64: 0 | N64: 0 | P64: 0
B65: August | D65: ='12. RTSR-Historic Wholesale'!D64 -> 0 | E65: 0 | F65: 0 | H65: ='12. RTSR-Historic Wholesale'!H64 -> 0 | I65: 0 | J65: 0 | L65: ='12. RTSR-Historic Wholesale'!L64 -> 0 | M65: 0 | N65: 0 | P65: 0
B66: September | D66: ='12. RTSR-Historic Wholesale'!D65 -> 0 | E66: 0 | F66: 0 | H66: ='12. RTSR-Historic Wholesale'!H65 -> 0 | I66: 0 | J66: 0 | L66: ='12. RTSR-Historic Wholesale'!L65 -> 0 | M66: 0 | N66: 0 | P66: 0
B67: October | D67: ='12. RTSR-Historic Wholesale'!D66 -> 0 | E67: 0 | F67: 0 | H67: ='12. RTSR-Historic Wholesale'!H66 -> 0 | I67: 0 | J67: 0 | L67: ='12. RTSR-Historic Wholesale'!L66 -> 0 | M67: 0 | N67: 0 | P67: 0
B68: November | D68: ='12. RTSR-Historic Wholesale'!D67 -> 0 | E68: 0 | F68: 0 | H68: ='12. RTSR-Historic Wholesale'!H67 -> 0 | I68: 0 | J68: 0 | L68: ='12. RTSR-Historic Wholesale'!L67 -> 0 | M68: 0 | N68: 0 | P68: 0
B69: December | D69: ='12. RTSR-Historic Wholesale'!D68 -> 0 | E69: 0 | F69: 0 | H69: ='12. RTSR-Historic Wholesale'!H68 -> 0 | I69: 0 | J69: 0 | L69: ='12. RTSR-Historic Wholesale'!L68 -> 0 | M69: 0 | N69: 0 | P69: 0
B71: Total | D71: =SUM(D58:D69) -> 0 | E71: =IF(D71<>0,F71/D71,0) -> 0 | F71: =SUM(F58:F69) -> 0 | H71: =SUM(H58:H69) -> 0 | I71: =IF(H71<>0,J71/H71,0) -> 0 | J71: =SUM(J58:J69) -> 0 | L71: =SUM(L58:L69) -> 0 | M71: =IF(L71<>0,N71/L71,0) -> 0 | N71: =SUM(N58:N69) -> 0 | P71: =SUM(P58:P69) -> 0
B73: ='[2]12. RTSR - Historical Wholesale'!B72 -> Add Extra Host Here (II) | D73: Network | H73: Line Connection | L73: Transformation Connection | P73: Total Line
B75: Month | D75: Units Billed | E75: Rate | F75: Amount | H75: Units Billed | I75: Rate | J75: Amount | L75: Units Billed | M75: Rate | N75: Amount | P75: Amount
B77: January | D77: ='12. RTSR-Historic Wholesale'!D76 -> 0 | E77: ='11. RTSR-UTRs & Sub-Tx'!G59 -> 0 | F77: =D77*E77 -> 0 | H77: ='12. RTSR-Historic Wholesale'!H76 -> 0 | I77: ='11. RTSR-UTRs & Sub-Tx'!G61 -> 0 | J77: =H77*I77 -> 0 | L77: ='12. RTSR-Historic Wholesale'!L76 -> 0 | M77: ='11. RTSR-UTRs & Sub-Tx'!G63 -> 0 | N77: =L77*M77 -> 0 | P77: =J77+N77 -> 0
B78: February | D78: ='12. RTSR-Historic Wholesale'!D77 -> 0 | E78: =E77 -> 0 | F78: =D78*E78 -> 0 | H78: ='12. RTSR-Historic Wholesale'!H77 -> 0 | I78: =I77 -> 0 | J78: =H78*I78 -> 0 | L78: ='12. RTSR-Historic Wholesale'!L77 -> 0 | M78: =M77 -> 0 | N78: =L78*M78 -> 0 | P78: 0
B79: March | D79: ='12. RTSR-Historic Wholesale'!D78 -> 0 | E79: =E78 -> 0 | F79: 0 | H79: ='12. RTSR-Historic Wholesale'!H78 -> 0 | I79: =I78 -> 0 | J79: 0 | L79: ='12. RTSR-Historic Wholesale'!L78 -> 0 | M79: =M78 -> 0 | N79: 0 | P79: 0
B80: April | D80: ='12. RTSR-Historic Wholesale'!D79 -> 0 | E80: 0 | F80: 0 | H80: ='12. RTSR-Historic Wholesale'!H79 -> 0 | I80: 0 | J80: 0 | L80: ='12. RTSR-Historic Wholesale'!L79 -> 0 | M80: =M79 -> 0 | N80: 0 | P80: 0
B81: May | D81: ='12. RTSR-Historic Wholesale'!D80 -> 0 | E81: 0 | F81: 0 | H81: ='12. RTSR-Historic Wholesale'!H80 -> 0 | I81: 0 | J81: 0 | L81: ='12. RTSR-Historic Wholesale'!L80 -> 0 | M81: 0 | N81: 0 | P81: 0
B82: June | D82: ='12. RTSR-Historic Wholesale'!D81 -> 0 | E82: 0 | F82: 0 | H82: ='12. RTSR-Historic Wholesale'!H81 -> 0 | I82: 0 | J82: 0 | L82: ='12. RTSR-Historic Wholesale'!L81 -> 0 | M82: 0 | N82: 0 | P82: 0
B83: July | D83: ='12. RTSR-Historic Wholesale'!D82 -> 0 | E83: 0 | F83: 0 | H83: ='12. RTSR-Historic Wholesale'!H82 -> 0 | I83: 0 | J83: 0 | L83: ='12. RTSR-Historic Wholesale'!L82 -> 0 | M83: 0 | N83: 0 | P83: 0
B84: August | D84: ='12. RTSR-Historic Wholesale'!D83 -> 0 | E84: 0 | F84: 0 | H84: ='12. RTSR-Historic Wholesale'!H83 -> 0 | I84: 0 | J84: 0 | L84: ='12. RTSR-Historic Wholesale'!L83 -> 0 | M84: 0 | N84: 0 | P84: 0
B85: September | D85: ='12. RTSR-Historic Wholesale'!D84 -> 0 | E85: 0 | F85: 0 | H85: ='12. RTSR-Historic Wholesale'!H84 -> 0 | I85: 0 | J85: 0 | L85: ='12. RTSR-Historic Wholesale'!L84 -> 0 | M85: 0 | N85: 0 | P85: 0
B86: October | D86: ='12. RTSR-Historic Wholesale'!D85 -> 0 | E86: 0 | F86: 0 | H86: ='12. RTSR-Historic Wholesale'!H85 -> 0 | I86: 0 | J86: 0 | L86: ='12. RTSR-Historic Wholesale'!L85 -> 0 | M86: 0 | N86: 0 | P86: 0
B87: November | D87: ='12. RTSR-Historic Wholesale'!D86 -> 0 | E87: 0 | F87: 0 | H87: ='12. RTSR-Historic Wholesale'!H86 -> 0 | I87: 0 | J87: 0 | L87: ='12. RTSR-Historic Wholesale'!L86 -> 0 | M87: 0 | N87: 0 | P87: 0
B88: December | D88: ='12. RTSR-Historic Wholesale'!D87 -> 0 | E88: 0 | F88: 0 | H88: ='12. RTSR-Historic Wholesale'!H87 -> 0 | I88: 0 | J88: 0 | L88: ='12. RTSR-Historic Wholesale'!L87 -> 0 | M88: 0 | N88: 0 | P88: 0
B90: Total | D90: =SUM(D77:D88) -> 0 | E90: =IF(D90<>0,F90/D90,0) -> 0 | F90: =SUM(F77:F88) -> 0 | H90: =SUM(H77:H88) -> 0 | I90: =IF(H90<>0,J90/H90,0) -> 0 | J90: =SUM(J77:J88) -> 0 | L90: =SUM(L77:L88) -> 0 | M90: =IF(L90<>0,N90/L90,0) -> 0 | N90: =SUM(N77:N88) -> 0 | P90: =SUM(P77:P88) -> 0
B92: Total | D92: Network | H92: Line Connection | L92: Transformation Connection | P92: Total Line
B94: Month | D94: Units Billed | E94: Rate | F94: Amount | H94: Units Billed | I94: Rate | J94: Amount | L94: Units Billed | M94: Rate | N94: Amount | P94: Amount
B96: January | D96: =D20+D39+D58+D77 -> 799009.32 | E96: =IF(D96<>0,F96/D96,0) -> 3.622394627 | F96: =F20+F39+F58+F77 -> 2894327.067 | H96: =H20+H39+H58+H77 -> 776994.95 | I96: =IF(H96<>0,J96/H96,0) -> 0.8617224313 | J96: =J20+J39+J58+J77 -> 669553.9775 | L96: =L20+L39+L58+L77 -> 843801.95 | M96: =IF(L96<>0,N96/L96,0) -> 1.999158282 | N96: =N20+N39+N58+N77 -> 1686893.656 | P96: =J96+N96 -> 2356447.634
B97: February | D97: =D21+D40+D59+D78 -> 804013.57 | E97: 3.621749677 | F97: =F21+F40+F59+F78 -> 2911935.887 | H97: =H21+H40+H59+H78 -> 777200.23 | I97: 0.8613437149 | J97: =J21+J40+J59+J78 -> 669436.5333 | L97: =L21+L40+L59+L78 -> 842686.23 | M97: 1.998170106 | N97: =N21+N40+N59+N78 -> 1683830.433 | P97: 2353266.966
B98: March | D98: 779560.13 | E98: 3.622576272 | F98: 2824016.03 | H98: 756965.64 | I98: 0.8617076033 | J98: 652283.0474 | L98: 813544.64 | M98: 1.99890265 | N98: 1626196.537 | P98: 2278479.584
B99: April | D99: 706120.7 | E99: 3.62374855 | F99: 2558803.863 | H99: 711430.57 | I99: 0.862002751 | J99: 613255.1085 | L99: 763469.57 | M99: 1.999623271 | N99: 1526651.519 | P99: 2139906.627
B100: May | D100: 864964.16 | E100: 3.62197775 | F100: 3132880.942 | H100: 886934.69 | I100: 0.8615760434 | J100: 764161.681 | L100: 947194.69 | M100: 1.998431419 | N100: 1892903.629 | P100: 2657065.31
B101: June | D101: 1013372.99 | E101: 3.616144046 | F101: 3664502.704 | H101: 992886.84 | I101: 0.8603457677 | J101: 854225.9906 | L101: 1061129.84 | M101: 1.995299711 | N101: 2117272.063 | P101: 2971498.054
B102: July | D102: 1018256.07 | E102: 3.619251803 | F102: 3685325.117 | H102: 1011982.82 | I102: 0.8612205642 | J102: 871540.4152 | L102: 1081964.82 | M102: 1.997546726 | N102: 2161275.284 | P102: 3032815.7
B103: August | D103: 1020290.79 | E103: 3.620457642 | F103: 3693919.588 | H103: 1026162.81 | I103: 0.8615815297 | J103: 884122.9235 | L103: 1093854.81 | M103: 1.998405516 | N103: 2185965.486 | P103: 3070088.409
B104: September | D104: 1071678.25 | E104: 3.621606361 | F104: 3881196.767 | H104: 1036610.27 | I104: 0.8614848743 | J104: 893024.0682 | L104: 1102982.27 | M104: 1.998117794 | N104: 2203888.5 | P104: 3096912.568
B105: October | D105: 691179.8 | E105: 3.623711556 | F105: 2504636.229 | H105: 700870.88 | I105: 0.8620614663 | J105: 604193.7785 | L105: 761073.88 | M105: 2.000010379 | N105: 1522155.659 | P105: 2126349.438
B106: November | D106: 729938.17 | E106: 3.624370193 | F106: 2645566.146 | H106: 718185.19 | I106: 0.862054033 | J106: 619114.4395 | L106: 770319.19 | M106: 1.999743447 | N106: 1540440.752 | P106: 2159555.192
B107: December | D107: 801731.25 | E107: 3.61868895 | F107: 2901216.015 | H107: 773643.86 | I107: 0.8608077185 | J107: 665958.6061 | L107: 831359.86 | M107: 1.996610098 | N107: 1659901.491 | P107: 2325860.097
B109: Total | D109: =SUM(D96:D107) -> 10300115.2 | E109: =IF(D109<>0,F109/D109,0) -> 3.621156233 | F109: =SUM(F96:F107) -> 37298326.36 | H109: =SUM(H96:H107) -> 10169868.75 | I109: =IF(H109<>0,J109/H109,0) -> 0.8614536514 | J109: =SUM(J96:J107) -> 8760870.569 | L109: =SUM(L96:L107) -> 10913381.75 | M109: =IF(L109<>0,N109/L109,0) -> 1.998223421 | N109: =SUM(N96:N107) -> 21807375.01 | P109: =SUM(P96:P107) -> 30568245.58
N111: Low Voltage Switchgear Credit (if applicable) | P111: ='11. RTSR-UTRs & Sub-Tx'!G68 -> 0
N113: Total including deduction for Low Voltage Switchgear Credit | P113: =P109+P111 -> 30568245.58

Sheet 14. RTSR-Forecast Wholesale
A1: Back to Index
B2: INCENTIVE REGULATION MODEL FOR 2018 FILERS
B13: The purpose of this sheet is to calculate the expected billing when forecasted 2018 Uniform Transmission Rates are applied against historical 2016 transmission units.
B16: IESO | D16: Network | H16: Line Connection | L16: Transformation Connection | P16: Total Line
B18: Month | D18: Units Billed | E18: Rate | F18: Amount | H18: Units Billed | I18: Rate | J18: Amount | L18: Units Billed | M18: Rate | N18: Amount | P18: Amount
B20: January | D20: ='12. RTSR-Historic Wholesale'!D19 -> 734503 | E20: ='11. RTSR-UTRs & Sub-Tx'!I16 -> 3.66 | F20: =D20*E20 -> 2688280.98 | H20: ='12. RTSR-Historic Wholesale'!H19 -> 712029 | I20: ='11. RTSR-UTRs & Sub-Tx'!I18 -> 0.87 | J20: =H20*I20 -> 619465.23 | L20: ='12. RTSR-Historic Wholesale'!L19 -> 778836 | M20: ='11. RTSR-UTRs & Sub-Tx'!I20 -> 2.02 | N20: =L20*M20 -> 1573248.72 | P20: =J20+N20 -> 2192713.95
B21: February | D21: ='12. RTSR-Historic Wholesale'!D20 -> 737990 | E21: =E20 -> 3.66 | F21: 2701043.4 | H21: ='12. RTSR-Historic Wholesale'!H20 -> 709244 | I21: =I20 -> 0.87 | J21: 617042.28 | L21: ='12. RTSR-Historic Wholesale'!L20 -> 774730 | M21: =M20 -> 2.02 | N21: 1564954.6 | P21: 2181996.88
B22: March | D22: ='12. RTSR-Historic Wholesale'!D21 -> 716928 | E22: 3.66 | F22: 2623956.48 | H22: ='12. RTSR-Historic Wholesale'!H21 -> 693561 | I22: 0.87 | J22: 603398.07 | L22: ='12. RTSR-Historic Wholesale'!L21 -> 750140 | M22: 2.02 | N22: 1515282.8 | P22: 2118680.87
B23: April | D23: ='12. RTSR-Historic Wholesale'!D22 -> 651166 | E23: 3.66 | F23: 2383267.56 | H23: ='12. RTSR-Historic Wholesale'!H22 -> 653961 | I23: 0.87 | J23: 568946.07 | L23: ='12. RTSR-Historic Wholesale'!L22 -> 706000 | M23: 2.02 | N23: 1426120 | P23: 1995066.07
B24: May | D24: ='12. RTSR-Historic Wholesale'!D23 -> 794359 | E24: 3.66 | F24: 2907353.94 | H24: ='12. RTSR-Historic Wholesale'!H23 -> 811465 | I24: 0.87 | J24: 705974.55 | L24: ='12. RTSR-Historic Wholesale'!L23 -> 871725 | M24: 2.02 | N24: 1760884.5 | P24: 2466859.05
B25: June | D25: ='12. RTSR-Historic Wholesale'!D24 -> 917962 | E25: 3.66 | F25: 3359740.92 | H25: ='12. RTSR-Historic Wholesale'!H24 -> 896063 | I25: 0.87 | J25: 779574.81 | L25: ='12. RTSR-Historic Wholesale'!L24 -> 964306 | M25: 2.02 | N25: 1947898.12 | P25: 2727472.93
B26: July | D26: ='12. RTSR-Historic Wholesale'!D25 -> 929179 | E26: 3.66 | F26: 3400795.14 | H26: ='12. RTSR-Historic Wholesale'!H25 -> 922239 | I26: 0.87 | J26: 802347.93 | L26: ='12. RTSR-Historic Wholesale'!L25 -> 992221 | M26: 2.02 | N26: 2004286.42 | P26: 2806634.35
B27: August | D27: ='12. RTSR-Historic Wholesale'!D26 -> 933677 | E27: 3.66 | F27: 3417257.82 | H27: ='12. RTSR-Historic Wholesale'!H26 -> 938903 | I27: 0.87 | J27: 816845.61 | L27: ='12. RTSR-Historic Wholesale'!L26 -> 1006595 | M27: 2.02 | N27: 2033321.9 | P27: 2850167.51
B28: September | D28: ='12. RTSR-Historic Wholesale'!D27 -> 983345 | E28: 3.66 | F28: 3599042.7 | H28: ='12. RTSR-Historic Wholesale'!H27 -> 947450 | I28: 0.87 | J28: 824281.5 | L28: ='12. RTSR-Historic Wholesale'!L27 -> 1013822 | M28: 2.02 | N28: 2047920.44 | P28: 2872201.94
B29: October | D29: ='12. RTSR-Historic Wholesale'!D28 -> 637333 | E29: 3.66 | F29: 2332638.78 | H29: ='12. RTSR-Historic Wholesale'!H28 -> 644670 | I29: 0.87 | J29: 560862.9 | L29: ='12. RTSR-Historic Wholesale'!L28 -> 704873 | M29: 2.02 | N29: 1423843.46 | P29: 1984706.36
B30: November | D30: ='12. RTSR-Historic Wholesale'!D29 -> 674104 | E30: 3.66 | F30: 2467220.64 | H30: ='12. RTSR-Historic Wholesale'!H29 -> 660542 | I30: 0.87 | J30: 574671.54 | L30: ='12. RTSR-Historic Wholesale'!L29 -> 712676 | M30: 2.02 | N30: 1439605.52 | P30: 2014277.06
B31: December | D31: ='12. RTSR-Historic Wholesale'!D30 -> 730627 | E31: 3.66 | F31: 2674094.82 | H31: ='12. RTSR-Historic Wholesale'!H30 -> 701810 | I31: 0.87 | J31: 610574.7 | L31: ='12. RTSR-Historic Wholesale'!L30 -> 759526 | M31: 2.02 | N31: 1534242.52 | P31: 2144817.22
B33: Total | D33: =SUM(D20:D31) -> 9441173 | E33: =IF(D33<>0,F33/D33,0) -> 3.66 | F33: =SUM(F20:F31) -> 34554693.18 | H33: =SUM(H20:H31) -> 9291937 | I33: =IF(H33<>0,J33/H33,0) -> 0.87 | J33: =SUM(J20:J31) -> 8083985.19 | L33: =SUM(L20:L31) -> 10035450 | M33: =IF(L33<>0,N33/L33,0) -> 2.02 | N33: =SUM(N20:N31) -> 20271609 | P33: =SUM(P20:P31) -> 28355594.19
B35: Hydro One | D35: Network | H35: Line Connection | L35: Transformation Connection | P35: Total Line
B37: Month | D37: Units Billed | E37: Rate | F37: Amount | H37: Units Billed | I37: Rate | J37: Amount | L37: Units Billed | M37: Rate | N37: Amount | P37: Amount
B39: January | D39: ='12. RTSR-Historic Wholesale'!D38 -> 64506.32 | E39: ='11. RTSR-UTRs & Sub-Tx'!I29 -> 3.1942 | F39: =D39*E39 -> 206046.0873 | H39: ='12. RTSR-Historic Wholesale'!H38 -> 64965.95 | I39: ='11. RTSR-UTRs & Sub-Tx'!I31 -> 0.771 | J39: =H39*I39 -> 50088.74745 | L39: ='12. RTSR-Historic Wholesale'!L38 -> 64965.95 | M39: ='11. RTSR-UTRs & Sub-Tx'!I33 -> 1.7493 | N39: =L39*M39 -> 113644.9363 | P39: =J39+N39 -> 163733.6838
B40: February | D40: ='12. RTSR-Historic Wholesale'!D39 -> 66023.57 | E40: =E39 -> 3.1942 | F40: 210892.4873 | H40: ='12. RTSR-Historic Wholesale'!H39 -> 67956.23 | I40: =I39 -> 0.771 | J40: 52394.25333 | L40: ='12. RTSR-Historic Wholesale'!L39 -> 67956.23 | M40: =M39 -> 1.7493 | N40: 118875.8331 | P40: 171270.0865
B41: March | D41: ='12. RTSR-Historic Wholesale'!D40 -> 62632.13 | E41: 3.1942 | F41: 200059.5496 | H41: ='12. RTSR-Historic Wholesale'!H40 -> 63404.64 | I41: 0.771 | J41: 48884.97744 | L41: ='12. RTSR-Historic Wholesale'!L40 -> 63404.64 | M41: 1.7493 | N41: 110913.7368 | P41: 159798.7142
B42: April | D42: ='12. RTSR-Historic Wholesale'!D41 -> 54954.7 | E42: 3.1942 | F42: 175536.3027 | H42: ='12. RTSR-Historic Wholesale'!H41 -> 57469.57 | I42: 0.771 | J42: 44309.03847 | L42: ='12. RTSR-Historic Wholesale'!L41 -> 57469.57 | M42: 1.7493 | N42: 100531.5188 | P42: 144840.5573
B43: May | D43: ='12. RTSR-Historic Wholesale'!D42 -> 70605.16 | E43: 3.1942 | F43: 225527.0021 | H43: ='12. RTSR-Historic Wholesale'!H42 -> 75469.69 | I43: 0.771 | J43: 58187.13099 | L43: ='12. RTSR-Historic Wholesale'!L42 -> 75469.69 | M43: 1.7493 | N43: 132019.1287 | P43: 190206.2597
B44: June | D44: ='12. RTSR-Historic Wholesale'!D43 -> 95410.99 | E44: 3.1942 | F44: 304761.7843 | H44: ='12. RTSR-Historic Wholesale'!H43 -> 96823.84 | I44: 0.771 | J44: 74651.18064 | L44: ='12. RTSR-Historic Wholesale'!L43 -> 96823.84 | M44: 1.7493 | N44: 169373.9433 | P44: 244025.124
B45: July | D45: ='12. RTSR-Historic Wholesale'!D44 -> 89077.07 | E45: 3.1942 | F45: 284529.977 | H45: ='12. RTSR-Historic Wholesale'!H44 -> 89743.82 | I45: 0.771 | J45: 69192.48522 | L45: ='12. RTSR-Historic Wholesale'!L44 -> 89743.82 | M45: 1.7493 | N45: 156988.8643 | P45: 226181.3495
B46: August | D46: ='12. RTSR-Historic Wholesale'!D45 -> 86613.79 | E46: 3.1942 | F46: 276661.768 | H46: ='12. RTSR-Historic Wholesale'!H45 -> 87259.81 | I46: 0.771 | J46: 67277.31351 | L46: ='12. RTSR-Historic Wholesale'!L45 -> 87259.81 | M46: 1.7493 | N46: 152643.5856 | P46: 219920.8991
B47: September | D47: ='12. RTSR-Historic Wholesale'!D46 -> 88333.25 | E47: 3.1942 | F47: 282154.0672 | H47: ='12. RTSR-Historic Wholesale'!H46 -> 89160.27 | I47: 0.771 | J47: 68742.56817 | L47: ='12. RTSR-Historic Wholesale'!L46 -> 89160.27 | M47: 1.7493 | N47: 155968.0603 | P47: 224710.6285
B48: October | D48: ='12. RTSR-Historic Wholesale'!D47 -> 53846.8 | E48: 3.1942 | F48: 171997.4486 | H48: ='12. RTSR-Historic Wholesale'!H47 -> 56200.88 | I48: 0.771 | J48: 43330.87848 | L48: ='12. RTSR-Historic Wholesale'!L47 -> 56200.88 | M48: 1.7493 | N48: 98312.19938 | P48: 141643.0779
B49: November | D49: ='12. RTSR-Historic Wholesale'!D48 -> 55834.17 | E49: 3.1942 | F49: 178345.5058 | H49: ='12. RTSR-Historic Wholesale'!H48 -> 57643.19 | I49: 0.771 | J49: 44442.89949 | L49: ='12. RTSR-Historic Wholesale'!L48 -> 57643.19 | M49: 1.7493 | N49: 100835.2323 | P49: 145278.1318
B50: December | D50: ='12. RTSR-Historic Wholesale'!D49 -> 71104.25 | E50: 3.1942 | F50: 227121.1953 | H50: ='12. RTSR-Historic Wholesale'!H49 -> 71833.86 | I50: 0.771 | J50: 55383.90606 | L50: ='12. RTSR-Historic Wholesale'!L49 -> 71833.86 | M50: 1.7493 | N50: 125658.9713 | P50: 181042.8774
B52: Total | D52: =SUM(D39:D50) -> 858942.2 | E52: =IF(D52<>0,F52/D52,0) -> 3.1942 | F52: =SUM(F39:F50) -> 2743633.175 | H52: =SUM(H39:H50) -> 877931.75 | I52: =IF(H52<>0,J52/H52,0) -> 0.771 | J52: =SUM(J39:J50) -> 676885.3792 | L52: =SUM(L39:L50) -> 877931.75 | M52: =IF(L52<>0,N52/L52,0) -> 1.7493 | N52: =SUM(N39:N50) -> 1535766.01 | P52: =SUM(P39:P50) -> 2212651.39
B54: ='[2]12. RTSR - Historical Wholesale'!B53 -> Add Extra Host Here (I) | D54: Network | H54: Line Connection | L54: Transformation Connection | P54: Total Line
B56: Month | D56: Units Billed | E56: Rate | F56: Amount | H56: Units Billed | I56: Rate | J56: Amount | L56: Units Billed | M56: Rate | N56: Amount | P56: Amount
B58: January | D58: ='12. RTSR-Historic Wholesale'!D57 -> 0 | E58: ='11. RTSR-UTRs & Sub-Tx'!I44 -> 0 | F58: =D58*E58 -> 0 | H58: ='12. RTSR-Historic Wholesale'!H57 -> 0 | I58: ='11. RTSR-UTRs & Sub-Tx'!I46 -> 0 | J58: =H58*I58 -> 0 | L58: ='12. RTSR-Historic Wholesale'!L57 -> 0 | M58: ='11. RTSR-UTRs & Sub-Tx'!I48 -> 0 | N58: =L58*M58 -> 0 | P58: =J58+N58 -> 0
B59: February | D59: ='12. RTSR-Historic Wholesale'!D58 -> 0 | E59: =E58 -> 0 | F59: 0 | H59: ='12. RTSR-Historic Wholesale'!H58 -> 0 | I59: =I58 -> 0 | J59: 0 | L59: ='12. RTSR-Historic Wholesale'!L58 -> 0 | M59: =M58 -> 0 | N59: 0 | P59: 0
B60: March | D60: ='12. RTSR-Historic Wholesale'!D59 -> 0 | E60: 0 | F60: 0 | H60: ='12. RTSR-Historic Wholesale'!H59 -> 0 | I60: 0 | J60: 0 | L60: ='12. RTSR-Historic Wholesale'!L59 -> 0 | M60: 0 | N60: 0 | P60: 0
B61: April | D61: ='12. RTSR-Historic Wholesale'!D60 -> 0 | E61: 0 | F61: 0 | H61: ='12. RTSR-Historic Wholesale'!H60 -> 0 | I61: 0 | J61: 0 | L61: ='12. RTSR-Historic Wholesale'!L60 -> 0 | M61: 0 | N61: 0 | P61: 0
B62: May | D62: ='12. RTSR-Historic Wholesale'!D61 -> 0 | E62: 0 | F62: 0 | H62: ='12. RTSR-Historic Wholesale'!H61 -> 0 | I62: 0 | J62: 0 | L62: ='12. RTSR-Historic Wholesale'!L61 -> 0 | M62: 0 | N62: 0 | P62: 0
B63: June | D63: ='12. RTSR-Historic Wholesale'!D62 -> 0 | E63: 0 | F63: 0 | H63: ='12. RTSR-Historic Wholesale'!H62 -> 0 | I63: 0 | J63: 0 | L63: ='12. RTSR-Historic Wholesale'!L62 -> 0 | M63: 0 | N63: 0 | P63: 0
B64: July | D64: ='12. RTSR-Historic Wholesale'!D63 -> 0 | E64: 0 | F64: 0 | H64: ='12. RTSR-Historic Wholesale'!H63 -> 0 | I64: 0 | J64: 0 | L64: ='12. RTSR-Historic Wholesale'!L63 -> 0 | M64: 0 | N64: 0 | P64: 0
B65: August | D65: ='12. RTSR-Historic Wholesale'!D64 -> 0 | E65: 0 | F65: 0 | H65: ='12. RTSR-Historic Wholesale'!H64 -> 0 | I65: 0 | J65: 0 | L65: ='12. RTSR-Historic Wholesale'!L64 -> 0 | M65: 0 | N65: 0 | P65: 0
B66: September | D66: ='12. RTSR-Historic Wholesale'!D65 -> 0 | E66: 0 | F66: 0 | H66: ='12. RTSR-Historic Wholesale'!H65 -> 0 | I66: 0 | J66: 0 | L66: ='12. RTSR-Historic Wholesale'!L65 -> 0 | M66: 0 | N66: 0 | P66: 0
B67: October | D67: ='12. RTSR-Historic Wholesale'!D66 -> 0 | E67: 0 | F67: 0 | H67: ='12. RTSR-Historic Wholesale'!H66 -> 0 | I67: 0 | J67: 0 | L67: ='12. RTSR-Historic Wholesale'!L66 -> 0 | M67: 0 | N67: 0 | P67: 0
B68: November | D68: ='12. RTSR-Historic Wholesale'!D67 -> 0 | E68: 0 | F68: 0 | H68: ='12. RTSR-Historic Wholesale'!H67 -> 0 | I68: 0 | J68: 0 | L68: ='12. RTSR-Historic Wholesale'!L67 -> 0 | M68: 0 | N68: 0 | P68: 0
B69: December | D69: ='12. RTSR-Historic Wholesale'!D68 -> 0 | E69: 0 | F69: 0 | H69: ='12. RTSR-Historic Wholesale'!H68 -> 0 | I69: 0 | J69: 0 | L69: ='12. RTSR-Historic Wholesale'!L68 -> 0 | M69: 0 | N69: 0 | P69: 0
B71: Total | D71: =SUM(D58:D69) -> 0 | E71: =IF(D71<>0,F71/D71,0) -> 0 | F71: =SUM(F58:F69) -> 0 | H71: =SUM(H58:H69) -> 0 | I71: =IF(H71<>0,J71/H71,0) -> 0 | J71: =SUM(J58:J69) -> 0 | L71: =SUM(L58:L69) -> 0 | M71: =IF(L71<>0,N71/L71,0) -> 0 | N71: =SUM(N58:N69) -> 0 | P71: =SUM(P58:P69) -> 0
B73: ='[2]12. RTSR - Historical Wholesale'!B72 -> Add Extra Host Here (II) | D73: Network | H73: Line Connection | L73: Transformation Connection | P73: Total Line
B75: Month | D75: Units Billed | E75: Rate | F75: Amount | H75: Units Billed | I75: Rate | J75: Amount | L75: Units Billed | M75: Rate | N75: Amount | P75: Amount
B77: January | D77: ='12. RTSR-Historic Wholesale'!D76 -> 0 | E77: ='11. RTSR-UTRs & Sub-Tx'!I59 -> 0 | F77: =D77*E77 -> 0 | H77: ='12. RTSR-Historic Wholesale'!H76 -> 0 | I77: ='11. RTSR-UTRs & Sub-Tx'!I61 -> 0 | J77: =H77*I77 -> 0 | L77: ='12. RTSR-Historic Wholesale'!L76 -> 0 | M77: ='11. RTSR-UTRs & Sub-Tx'!I63 -> 0 | N77: =L77*M77 -> 0 | P77: =J77+N77 -> 0
B78: February | D78: ='12. RTSR-Historic Wholesale'!D77 -> 0 | E78: =E77 -> 0 | F78: 0 | H78: ='12. RTSR-Historic Wholesale'!H77 -> 0 | I78: =I77 -> 0 | J78: 0 | L78: ='12. RTSR-Historic Wholesale'!L77 -> 0 | M78: =M77 -> 0 | N78: 0 | P78: 0
B79: March | D79: ='12. RTSR-Historic Wholesale'!D78 -> 0 | E79: 0 | F79: 0 | H79: ='12. RTSR-Historic Wholesale'!H78 -> 0 | I79: 0 | J79: 0 | L79: ='12. RTSR-Historic Wholesale'!L78 -> 0 | M79: 0 | N79: 0 | P79: 0
B80: April | D80: ='12. RTSR-Historic Wholesale'!D79 -> 0 | E80: 0 | F80: 0 | H80: ='12. RTSR-Historic Wholesale'!H79 -> 0 | I80: 0 | J80: 0 | L80: ='12. RTSR-Historic Wholesale'!L79 -> 0 | M80: 0 | N80: 0 | P80: 0
B81: May | D81: ='12. RTSR-Historic Wholesale'!D80 -> 0 | E81: 0 | F81: 0 | H81: ='12. RTSR-Historic Wholesale'!H80 -> 0 | I81: 0 | J81: 0 | L81: ='12. RTSR-Historic Wholesale'!L80 -> 0 | M81: 0 | N81: 0 | P81: 0
B82: June | D82: ='12. RTSR-Historic Wholesale'!D81 -> 0 | E82: 0 | F82: 0 | H82: ='12. RTSR-Historic Wholesale'!H81 -> 0 | I82: 0 | J82: 0 | L82: ='12. RTSR-Historic Wholesale'!L81 -> 0 | M82: 0 | N82: 0 | P82: 0
B83: July | D83: ='12. RTSR-Historic Wholesale'!D82 -> 0 | E83: 0 | F83: 0 | H83: ='12. RTSR-Historic Wholesale'!H82 -> 0 | I83: 0 | J83: 0 | L83: ='12. RTSR-Historic Wholesale'!L82 -> 0 | M83: 0 | N83: 0 | P83: 0
B84: August | D84: ='12. RTSR-Historic Wholesale'!D83 -> 0 | E84: 0 | F84: 0 | H84: ='12. RTSR-Historic Wholesale'!H83 -> 0 | I84: 0 | J84: 0 | L84: ='12. RTSR-Historic Wholesale'!L83 -> 0 | M84: 0 | N84: 0 | P84: 0
B85: September | D85: ='12. RTSR-Historic Wholesale'!D84 -> 0 | E85: 0 | F85: 0 | H85: ='12. RTSR-Historic Wholesale'!H84 -> 0 | I85: 0 | J85: 0 | L85: ='12. RTSR-Historic Wholesale'!L84 -> 0 | M85: 0 | N85: 0 | P85: 0
B86: October | D86: ='12. RTSR-Historic Wholesale'!D85 -> 0 | E86: 0 | F86: 0 | H86: ='12. RTSR-Historic Wholesale'!H85 -> 0 | I86: 0 | J86: 0 | L86: ='12. RTSR-Historic Wholesale'!L85 -> 0 | M86: 0 | N86: 0 | P86: 0
B87: November | D87: ='12. RTSR-Historic Wholesale'!D86 -> 0 | E87: 0 | F87: 0 | H87: ='12. RTSR-Historic Wholesale'!H86 -> 0 | I87: 0 | J87: 0 | L87: ='12. RTSR-Historic Wholesale'!L86 -> 0 | M87: 0 | N87: 0 | P87: 0
B88: December | D88: ='12. RTSR-Historic Wholesale'!D87 -> 0 | E88: 0 | F88: 0 | H88: ='12. RTSR-Historic Wholesale'!H87 -> 0 | I88: 0 | J88: 0 | L88: ='12. RTSR-Historic Wholesale'!L87 -> 0 | M88: 0 | N88: 0 | P88: 0
L89: ='12. RTSR-Historic Wholesale'!L88 -> 0
B90: Total | D90: =SUM(D77:D88) -> 0 | E90: =IF(D90<>0,F90/D90,0) -> 0 | F90: =SUM(F77:F88) -> 0 | H90: =SUM(H77:H88) -> 0 | I90: =IF(H90<>0,J90/H90,0) -> 0 | J90: =SUM(J77:J88) -> 0 | L90: =SUM(L77:L88) -> 0 | M90: =IF(L90<>0,N90/L90,0) -> 0 | N90: =SUM(N77:N88) -> 0 | P90: =SUM(P77:P88) -> 0
B92: Total | D92: Network | H92: Line Connection | L92: Transformation Connection | P92: Total Line
B94: Month | D94: Units Billed | E94: Rate | F94: Amount | H94: Units Billed | I94: Rate | J94: Amount | L94: Units Billed | M94: Rate | N94: Amount | P94: Amount
B96: January | D96: =D20+D39+D58+D77 -> 799009.32 | E96: =IF(D96<>0,F96/D96,0) -> 3.622394627 | F96: =F20+F39+F58+F77 -> 2894327.067 | H96: =H20+H39+H58+H77 -> 776994.95 | I96: =IF(H96<>0,J96/H96,0) -> 0.8617224313 | J96: =J20+J39+J58+J77 -> 669553.9775 | L96: =L20+L39+L58+L77 -> 843801.95 | M96: =IF(L96<>0,N96/L96,0) -> 1.999158282 | N96: =N20+N39+N58+N77 -> 1686893.656 | P96: =J96+N96 -> 2356447.634
B97: February | D97: =D21+D40+D59+D78 -> 804013.57 | E97: 3.621749677 | F97: =F21+F40+F59+F78 -> 2911935.887 | H97: =H21+H40+H59+H78 -> 777200.23 | I97: 0.8613437149 | J97: =J21+J40+J59+J78 -> 669436.5333 | L97: =L21+L40+L59+L78 -> 842686.23 | M97: 1.998170106 | N97: =N21+N40+N59+N78 -> 1683830.433 | P97: 2353266.966
B98: March | D98: 779560.13 | E98: 3.622576272 | F98: 2824016.03 | H98: 756965.64 | I98: 0.8617076033 | J98: 652283.0474 | L98: 813544.64 | M98: 1.99890265 | N98: 1626196.537 | P98: 2278479.584
B99: April | D99: 706120.7 | E99: 3.62374855 | F99: 2558803.863 | H99: 711430.57 | I99: 0.862002751 | J99: 613255.1085 | L99: 763469.57 | M99: 1.999623271 | N99: 1526651.519 | P99: 2139906.627
B100: May | D100: 864964.16 | E100: 3.62197775 | F100: 3132880.942 | H100: 886934.69 | I100: 0.8615760434 | J100: 764161.681 | L100: 947194.69 | M100: 1.998431419 | N100: 1892903.629 | P100: 2657065.31
B101: June | D101: 1013372.99 | E101: 3.616144046 | F101: 3664502.704 | H101: 992886.84 | I101: 0.8603457677 | J101: 854225.9906 | L101: 1061129.84 | M101: 1.995299711 | N101: 2117272.063 | P101: 2971498.054
B102: July | D102: 1018256.07 | E102: 3.619251803 | F102: 3685325.117 | H102: 1011982.82 | I102: 0.8612205642 | J102: 871540.4152 | L102: 1081964.82 | M102: 1.997546726 | N102: 2161275.284 | P102: 3032815.7
B103: August | D103: 1020290.79 | E103: 3.620457642 | F103: 3693919.588 | H103: 1026162.81 | I103: 0.8615815297 | J103: 884122.9235 | L103: 1093854.81 | M103: 1.998405516 | N103: 2185965.486 | P103: 3070088.409
B104: September | D104: 1071678.25 | E104: 3.621606361 | F104: 3881196.767 | H104: 1036610.27 | I104: 0.8614848743 | J104: 893024.0682 | L104: 1102982.27 | M104: 1.998117794 | N104: 2203888.5 | P104: 3096912.568
B105: October | D105: 691179.8 | E105: 3.623711556 | F105: 2504636.229 | H105: 700870.88 | I105: 0.8620614663 | J105: 604193.7785 | L105: 761073.88 | M105: 2.000010379 | N105: 1522155.659 | P105: 2126349.438
B106: November | D106: 729938.17 | E106: 3.624370193 | F106: 2645566.146 | H106: 718185.19 | I106: 0.862054033 | J106: 619114.4395 | L106: 770319.19 | M106: 1.999743447 | N106: 1540440.752 | P106: 2159555.192
B107: December | D107: 801731.25 | E107: 3.61868895 | F107: 2901216.015 | H107: 773643.86 | I107: 0.8608077185 | J107: 665958.6061 | L107: 831359.86 | M107: 1.996610098 | N107: 1659901.491 | P107: 2325860.097
B109: Total | D109: =SUM(D96:D107) -> 10300115.2 | E109: =IF(D109<>0,F109/D109,0) -> 3.621156233 | F109: =SUM(F96:F107) -> 37298326.36 | H109: =SUM(H96:H107) -> 10169868.75 | I109: =IF(H109<>0,J109/H109,0) -> 0.8614536514 | J109: =SUM(J96:J107) -> 8760870.569 | L109: =SUM(L96:L107) -> 10913381.75 | M109: =IF(L109<>0,N109/L109,0) -> 1.998223421 | N109: =SUM(N96:N107) -> 21807375.01 | P109: =SUM(P96:P107) -> 30568245.58
N111: Low Voltage Switchgear Credit (if applicable) | P111: ='11. RTSR-UTRs & Sub-Tx'!I68 -> 0
N113: Total including deduction for Low Voltage Switchgear Credit | P113: =P109+P111 -> 30568245.58

Sheet 15. RTSR-Rates to Forecast
A1: Back to Index | B1: Back to Index
B2: INCENTIVE REGULATION MODEL FOR 2018 FILERS
B13: The purpose of this table is to re-align the current RTS Network Rates to recover current wholesale network costs.
B15: Rate Class | C15: Rate Description | D15: Unit | E15: Current RTSR-Network | F15: Loss Adjusted Billed kWh | G15: Billed kW | H15: Billed Amount | I15: Billed Amount % | J15: Current Wholesale Billing | K15: Adjusted RTSR Network
A17: ='10. RTSR - Current Rates'!A16 -> R_TN | B17: =+'10. RTSR - Current Rates'!B16 -> RESIDENTIAL SERVICE CLASSIFICATION | C17: =VLOOKUP(A17,RTSR,3,FALSE) -> Retail Transmission Rate – Network Service Rate | D17: =VLOOKUP(A17,RTSR,4,FALSE) -> $/kWh | E17: =+'10. RTSR - Current Rates'!E16 -> 0.0074 | F17: =VLOOKUP(A17,RTSR,9,FALSE) -> 1710255588 | G17: =VLOOKUP(A17,RTSR,7,FALSE) -> 0 | H17: =IF(ISERROR(E17*F17), 0, ROUND(E17*F17, 2)) -> 12655891.35 | I17: =H17/SUM(H$17:H$27) -> 0.3456413076 | J17: =I17*total_wholesale_TN -> 12891842.29 | K17: =IF(ISERROR(J17/F17), 0, J17/F17) -> 0.007537962385
A18: ='10. RTSR - Current Rates'!A18 -> GSL_TN | B18: =+'10. RTSR - Current Rates'!B18 -> GENERAL SERVICE LESS THAN 50 kW SERVICE CLASSIFICATION | C18: Retail Transmission Rate – Network Service Rate | D18: $/kWh | E18: =+'10. RTSR - Current Rates'!E18 -> 0.0065 | F18: =VLOOKUP(A18,RTSR,9,FALSE) -> 617704811 | G18: =VLOOKUP(A18,RTSR,7,FALSE) -> 0 | H18: =IF(ISERROR(E18*F18), 0, ROUND(E18*F18, 2)) -> 4015081.27 | I18: 0.1096546977 | J18: =I18*total_wholesale_TN -> 4089936.701 | K18: =IF(ISERROR(J18/F18), 0, J18/F18) -> 0.006621183175
A19: ='10. RTSR - Current Rates'!A20 -> GS50_499_TN | B19: =+'10. RTSR - Current Rates'!B20 -> GENERAL SERVICE GREATER THAN 50 kW SERVICE CLASSIFICATION | C19: Retail Transmission Rate – Network Service Rate | D19: $/kW | E19: =+'10. RTSR - Current Rates'!E20 -> 2.5721 | F19: 0 | G19: 4895437.151 | H19: =IF(ISERROR(E19*G19), 0, ROUND(E19*G19, 2)) -> 12591553.9 | I19: 0.3438842065 | J19: 12826305.36 | K19: =IF(ISERROR(J19/G19), 0, J19/G19) -> 2.620053116
A20: ='10. RTSR - Current Rates'!A22 -> GS500_TN | B20: =+'10. RTSR - Current Rates'!B22 -> LARGE USE 1 SERVICE CLASSIFICATION | C20: Retail Transmission Rate – Network Service Rate | D20: $/kW | E20: =+'10. RTSR - Current Rates'!E22 -> 2.9382 | F20: 0 | G20: 512415.67 | H20: =IF(ISERROR(E20*G20), 0, ROUND(E20*G20, 2)) -> 1505579.72 | I20: 0.04111844268 | J20: 1533649.094 | K20: =IF(ISERROR(J20/G20), 0, J20/G20) -> 2.992978521
A21: ='10. RTSR - Current Rates'!A24 -> LU_TN | B21: =+'10. RTSR - Current Rates'!B24 -> LARGE USE 2 SERVICE CLASSIFICATION | C21: Retail Transmission Rate – Network Service Rate – Interval Metered | D21: $/kW | E21: =+'10. RTSR - Current Rates'!E24 -> 2.9382 | F21: 0 | G21: 1901226.94 | H21: 5586185 | I21: 0.1525626473 | J21: 5690331.407 | K21: 2.992978527
B22: =+'10. RTSR - Current Rates'!B26 -> UNMETERED SCATTERED LOAD SERVICE CLASSIFICATION | C22: Retail Transmission Rate – Network Service Rate | D22: $/kWh | E22: =+'10. RTSR - Current Rates'!E26 -> 0.0066 | F22: =+'10. RTSR - Current Rates'!I26 -> 12009615.58 | G22: 0 | H22: =IF(ISERROR(E22*F22), 0, ROUND(E22*F22, 2)) -> 79263.46 | I22: 0.002164740926 | J22: =I22*total_wholesale_TN -> 80741.21352 | K22: =IF(ISERROR(J22/F22), 0, J22/F22) -> 0.006723047291
B23: ='[1]4. Billing Det. for Def-Var'!B22 -> STANDBY POWER SERVICE CLASSIFICATION
A24: ='10. RTSR - Current Rates'!A26 -> USL_TN | B24: =+'10. RTSR - Current Rates'!B28 -> SENTINEL LIGHTING | C24: Retail Transmission Rate – Network Service Rate | D24: $/kW | E24: =+'10. RTSR - Current Rates'!E28 -> 2.1373 | F24: 0 | G24: =+'10. RTSR - Current Rates'!G28 -> 1213.423076 | H24: =IF(ISERROR(E24*G24), 0, ROUND(E24*G24, 2)) -> 2593.45 | I24: =H24/SUM(H$17:H$27) -> 7.082894632e-05 | J24: 2641.801155 | K24: 2.177147614
A25: SL_TN | B25: =+'10. RTSR - Current Rates'!B30 -> STREET LIGHTING SERVICE CLASSIFICATION | C25: Retail Transmission Rate – Network Service Rate | D25: $/kW | E25: =+'10. RTSR - Current Rates'!E30 -> 2.0248 | F25: 0 | G25: 88666.23 | H25: 179531.38 | I25: =H25/SUM(H$17:H$27) -> 0.004903128449 | J25: 182878.4851 | K25: 2.062549463
B28: The purpose of this table is to re-align the current RTS Connection Rates to recover current wholesale connection costs.
B29: Rate Class | C29: Rate Description | D29: Unit | E29: Current RTSR-Connection | F29: Loss Adjusted Billed kWh | G29: Billed kW | H29: Billed Amount | I29: Billed Amount % | J29: Current Wholesale Billing | K29: Adjusted RTSR-Connection
A31: R_TC | B31: =B17 -> RESIDENTIAL SERVICE CLASSIFICATION | C31: =VLOOKUP(A31,RTSR,3,FALSE) -> Retail Transmission Rate – Line and Transformation Connection Service Rate | D31: =VLOOKUP(A31,RTSR,4,FALSE) -> $/kWh | E31: =+'10. RTSR - Current Rates'!E17 -> 0.0059 | F31: =F17 -> 1710255588 | G31: 0 | H31: =IF(ISERROR(E31*F31), 0, ROUND(E31*F31, 2)) -> 10090507.97 | I31: =H31/SUM(H$31:H$41) -> 0.338074321 | J31: =I31*total_wholesale_LinePlus -> 10334338.87 | K31: =IF(ISERROR(J31/F31), 0, J31/F31) -> 0.006042569859
A32: GSL_TC | B32: GENERAL SERVICE LESS THAN 50 kW SERVICE CLASSIFICATION | C32: Retail Transmission Rate – Line and Transformation Connection Service Rate | D32: $/kWh | E32: =+'10. RTSR - Current Rates'!E19 -> 0.0053 | F32: 617704811 | G32: 0 | H32: =IF(ISERROR(E32*F32), 0, ROUND(E32*F32, 2)) -> 3273835.5 | I32: =H32/SUM(H$31:H$41) -> 0.1096872146 | J32: 3352945.714 | K32: =IF(ISERROR(J32/F32), 0, J32/F32) -> 0.005428071232
A33: GS50_499_TC | B33: GENERAL SERVICE GREATER THAN 50 kW SERVICE CLASSIFICATION | C33: Retail Transmission Rate – Line and Transformation Connection Service Rate | D33: $/kW | E33: =+'10. RTSR - Current Rates'!E21 -> 2.1213 | F33: 0 | G33: 4895437.151 | H33: =IF(ISERROR(E33*G33), 0, ROUND(E33*G33, 2)) -> 10384690.83 | I33: 0.3479306801 | J33: 10635630.47 | K33: =IF(ISERROR(J33/G33), 0, J33/G33) -> 2.172559905
A34: GS500_TC | B34: LARGE USE 1 SERVICE CLASSIFICATION | C34: Retail Transmission Rate – Line and Transformation Connection Service Rate | D34: $/kW | E34: =+'10. RTSR - Current Rates'!E23 -> 2.4376 | F34: 0 | G34: 512415.67 | H34: =IF(ISERROR(E34*G34), 0, ROUND(E34*G34, 2)) -> 1249064.44 | I34: 0.04184889538 | J34: 1279247.311 | K34: =IF(ISERROR(J34/G34), 0, J34/G34) -> 2.496503105
A35: LU_TC | B35: LARGE USE 2 SERVICE CLASSIFICATION | C35: Retail Transmission Rate – Line and Transformation Connection Service Rate – Interval Metered | D35: $/kW | E35: =+'10. RTSR - Current Rates'!E25 -> 2.4376 | F35: 0 | G35: 1901226.94 | H35: 4634430.79 | I35: 0.1552728611 | J35: 4746418.95 | K35: 2.4965031
B36: UNMETERED SCATTERED LOAD SERVICE CLASSIFICATION | C36: =+C33 -> Retail Transmission Rate – Line and Transformation Connection Service Rate | D36: $/kWh | E36: =+'10. RTSR - Current Rates'!E27 -> 0.0054 | F36: 12009615.58 | G36: 0 | H36: =IF(ISERROR(E36*F36), 0, ROUND(E36*F36, 2)) -> 64851.92 | I36: =H36/SUM(H$31:H$41) -> 0.002172811209 | J36: =I36*total_wholesale_LinePlus -> 66419.02662 | K36: =IF(ISERROR(J36/F36), 0, J36/F36) -> 0.005530487313
B37: STANDBY POWER SERVICE CLASSIFICATION
A38: USL_TC | B38: SENTINEL LIGHTING | C38: Retail Transmission Rate – Line and Transformation Connection Service Rate | D38: $/kW | E38: =+'10. RTSR - Current Rates'!E29 -> 1.7069 | F38: =F24 -> 0 | G38: =G24 -> 1213.423076 | H38: 2071.19 | I38: 6.939354837e-05 | J38: 2121.239028 | K38: =IF(ISERROR(J38/G38), 0, J38/G38) -> 1.748144625
A39: SL_TC | B39: STREET LIGHTING SERVICE CLASSIFICATION | C39: Retail Transmission Rate – Line and Transformation Connection Service Rate | D39: $/kW | E39: =+'10. RTSR - Current Rates'!E31 -> 1.6642 | F39: =F25 -> 0 | G39: =G25 -> 88666.23 | H39: 147558.34 | I39: 0.004943823021 | J39: 151123.9962 | K39: 1.704414366
B42: The purpose of this table is to update the re-aligned RTS Network Rates to recover future wholesale network costs.
B43: Rate Class | C43: Rate Description | D43: Unit | E43: Adjusted RTSR-Network | F43: Loss Adjusted Billed kWh | G43: Billed kW | H43: Billed Amount | I43: Billed Amount % | J43: Current Wholesale Billing | K43: Proposed RTSR-Network
A45: R_TN | B45: =B17 -> RESIDENTIAL SERVICE CLASSIFICATION | C45: =VLOOKUP(A45,RTSR,3,FALSE) -> Retail Transmission Rate – Network Service Rate | D45: =VLOOKUP(A45,RTSR,4,FALSE) -> $/kWh | E45: =K17 -> 0.007537962385 | F45: =VLOOKUP(A45,RTSR,9,FALSE) -> 1710255588 | G45: =VLOOKUP(A45,RTSR,7,FALSE) -> 0 | H45: =IF(ISERROR(E45*F45), 0, ROUND(E45*F45, 2)) -> 12891842.29 | I45: =H45/SUM(H$45:H$55) -> 0.3456413076 | J45: =I45*forecast_wholesale_TN -> 12891842.29 | K45: =IF(ISERROR(J45/F45), 0, J45/F45) -> 0.007537962385
A46: GSL_TN | B46: GENERAL SERVICE LESS THAN 50 kW SERVICE CLASSIFICATION | C46: Retail Transmission Rate – Network Service Rate | D46: $/kWh | E46: 0.006621183175 | F46: 617704811 | G46: 0 | H46: =IF(ISERROR(E46*F46), 0, ROUND(E46*F46, 2)) -> 4089936.7 | I46: 0.1096546977 | J46: 4089936.701 | K46: =IF(ISERROR(J46/F46), 0, J46/F46) -> 0.006621183173
A47: GS50_499_TN | B47: GENERAL SERVICE GREATER THAN 50 kW SERVICE CLASSIFICATION | C47: Retail Transmission Rate – Network Service Rate | D47: $/kW | E47: 2.620053116 | F47: 0 | G47: 4895437.151 | H47: =IF(ISERROR(E47*G47), 0, ROUND(E47*G47, 2)) -> 12826305.36 | I47: 0.3438842065 | J47: 12826305.36 | K47: =IF(ISERROR(J47/G47), 0, J47/G47) -> 2.620053116
A48: GS500_TN | B48: LARGE USE 1 SERVICE CLASSIFICATION | C48: Retail Transmission Rate – Network Service Rate | D48: $/kW | E48: 2.992978521 | F48: 0 | G48: 512415.67 | H48: =IF(ISERROR(E48*G48), 0, ROUND(E48*G48, 2)) -> 1533649.09 | I48: 0.04111844257 | J48: 1533649.09 | K48: =IF(ISERROR(J48/G48), 0, J48/G48) -> 2.992978513
A49: LU_TN | B49: LARGE USE 2 SERVICE CLASSIFICATION | C49: Retail Transmission Rate – Network Service Rate – Interval Metered | D49: $/kW | E49: 2.992978527 | F49: 0 | G49: 1901226.94 | H49: 5690331.41 | I49: 0.1525626474 | J49: 5690331.411 | K49: 2.992978529
B50: UNMETERED SCATTERED LOAD SERVICE CLASSIFICATION | C50: =+C48 -> Retail Transmission Rate – Network Service Rate | D50: $/kWh | E50: 0.006723047291 | F50: =+'10. RTSR - Current Rates'!I26 -> 12009615.58 | G50: 0 | H50: =IF(ISERROR(E50*F50), 0, ROUND(E50*F50, 2)) -> 80741.21 | I50: 0.002164740832 | J50: =I50*forecast_wholesale_TN -> 80741.21001 | K50: =IF(ISERROR(J50/F50), 0, J50/F50) -> 0.006723046999
B51: STANDBY POWER SERVICE CLASSIFICATION
A52: USL_TN | B52: SENTINEL LIGHTING | C52: Retail Transmission Rate – Network Service Rate | D52: $/kW | E52: =K24 -> 2.177147614 | F52: 0 | G52: =+'10. RTSR - Current Rates'!G28 -> 1213.423076 | H52: 2641.8 | I52: =H52/SUM(H$45:H$55) -> 7.082891536e-05 | J52: 2641.8 | K52: 2.177146663
A53: SL_TN | B53: STREET LIGHTING SERVICE CLASSIFICATION | C53: Retail Transmission Rate – Network Service Rate | D53: $/kW | E53: =K25 -> 2.062549463 | F53: 0 | G53: 88666.23 | H53: 182878.49 | I53: =H53/SUM(H$45:H$55) -> 0.004903128582 | J53: 182878.49 | K53: 2.062549519
B56: The purpose of this table is to update the re-aligned RTS Connection Rates to recover future wholesale connection costs.
B57: Rate Class | C57: Rate Description | D57: Unit | E57: Adjusted RTSR-Connection | F57: Loss Adjusted Billed kWh | G57: Billed kW | H57: Billed Amount | I57: Billed Amount % | J57: Current Wholesale Billing | K57: Proposed RTSR-Connection
A59: R_TC | B59: =B17 -> RESIDENTIAL SERVICE CLASSIFICATION | C59: =VLOOKUP(A59,RTSR,3,FALSE) -> Retail Transmission Rate – Line and Transformation Connection Service Rate | D59: =VLOOKUP(A59,RTSR,4,FALSE) -> $/kWh | E59: =K31 -> 0.006042569859 | F59: =VLOOKUP(A59,RTSR,9,FALSE) -> 1710255588 | G59: =VLOOKUP(A59,RTSR,7,FALSE) -> 0 | H59: =IF(ISERROR(E59*F59), 0, ROUND(E59*F59, 2)) -> 10334338.87 | I59: =H59/SUM(H$59:H$69) -> 0.338074321 | J59: =I59*forecast_wholesale_LNPlus -> 10334338.87 | K59: =IF(ISERROR(J59/F59), 0, J59/F59) -> 0.006042569861
A60: GSL_TC | B60: GENERAL SERVICE LESS THAN 50 kW SERVICE CLASSIFICATION | C60: Retail Transmission Rate – Line and Transformation Connection Service Rate | D60: $/kWh | E60: 0.005428071232 | F60: 617704811 | G60: 0 | H60: =IF(ISERROR(E60*F60), 0, ROUND(E60*F60, 2)) -> 3352945.71 | I60: =H60/SUM(H$59:H$69) -> 0.1096872145 | J60: 3352945.71 | K60: =IF(ISERROR(J60/F60), 0, J60/F60) -> 0.005428071225
A61: GS50_499_TC | B61: GENERAL SERVICE GREATER THAN 50 kW SERVICE CLASSIFICATION | C61: Retail Transmission Rate – Line and Transformation Connection Service Rate | D61: $/kW | E61: 2.172559905 | F61: 0 | G61: 4895437.151 | H61: =IF(ISERROR(E61*G61), 0, ROUND(E61*G61, 2)) -> 10635630.47 | I61: 0.34793068 | J61: 10635630.47 | K61: =IF(ISERROR(J61/G61), 0, J61/G61) -> 2.172559904
A62: GS500_TC | B62: LARGE USE 1 SERVICE CLASSIFICATION | C62: Retail Transmission Rate – Line and Transformation Connection Service Rate | D62: $/kW | E62: 2.496503105 | F62: 0 | G62: 512415.67 | H62: =IF(ISERROR(E62*G62), 0, ROUND(E62*G62, 2)) -> 1279247.31 | I62: 0.04184889534 | J62: 1279247.31 | K62: =IF(ISERROR(J62/G62), 0, J62/G62) -> 2.496503103
A63: LU_TC | B63: LARGE USE 2 SERVICE CLASSIFICATION | C63: Retail Transmission Rate – Line and Transformation Connection Service Rate – Interval Metered | D63: $/kW | E63: 2.4965031 | F63: 0 | G63: 1901226.94 | H63: 4746418.95 | I63: 0.1552728611 | J63: 4746418.95 | K63: 2.4965031
B64: UNMETERED SCATTERED LOAD SERVICE CLASSIFICATION | C64: =+C61 -> Retail Transmission Rate – Line and Transformation Connection Service Rate | D64: $/kWh | E64: 0.005530487313 | F64: =+'10. RTSR - Current Rates'!I27 -> 12009615.58 | G64: 0 | H64: =IF(ISERROR(E64*F64), 0, ROUND(E64*F64, 2)) -> 66419.03 | I64: =H64/SUM(H$59:H$69) -> 0.002172811319 | J64: =I64*forecast_wholesale_LNPlus -> 66419.03 | K64: =IF(ISERROR(J64/F64), 0, J64/F64) -> 0.005530487594
B65: STANDBY POWER SERVICE CLASSIFICATION
A66: USL_TC | B66: SENTINEL LIGHTING | C66: Retail Transmission Rate – Line and Transformation Connection Service Rate | D66: $/kW | E66: =K38 -> 1.748144625 | F66: 0 | G66: =+'10. RTSR - Current Rates'!G29 -> 1213.423076 | H66: =IF(ISERROR(E66*G66), 0, ROUND(E66*G66, 2)) -> 2121.24 | I66: =H66/SUM(H$59:H$69) -> 6.939358016e-05 | J66: =I66*forecast_wholesale_LNPlus -> 2121.24 | K66: =IF(ISERROR(J66/G66), 0, J66/G66) -> 1.748145426
A67: SL_TC | B67: STREET LIGHTING SERVICE CLASSIFICATION | C67: Retail Transmission Rate – Line and Transformation Connection Service Rate | D67: $/kW | E67: =K39 -> 1.704414366 | F67: 0 | G67: 88666.23 | H67: 151124 | I67: 0.004943823145 | J67: 151124 | K67: 1.704414409
